{"text_format":"1","workbook":"xlsx","n_sheets":9,"sheets":["الرئيسه","اساسيه","جداول الفصول","جداول المعلمين","جداول االمواد","جدول إجمالي الفصول","جدول اجمالي المدرسين","الجميع","ورقة1"],"not_rendered":{"charts":0,"images":2,"macros":1,"external_links":1,"defined_names":35,"comments":5,"pivot_tables":0},"unopened":[],"bounds":{"document_bytes":16777216,"sheet_cells":100000,"rows_first":2000,"rows_last":500,"rows_between":2000,"halvings":0,"cell_chars":16384,"cell_head_chars":4096},"cells_cut":0,"cells_raw":0,"read":"whole","date_system":"1900"}

{"sheet":"الرئيسه","index":0,"n_rows":134,"n_cols":21,"rows_kept":134,"cut":false,"hidden":false,"merged":[[12,5,12,14]]}
[null,null,null,null,null,null,null,null,null,null,null,null,null,null,null,null,null,3,3,1,{"$f":"IF(اللغة=1,\"عرض صفحات المصنف من اليسار الى اليمين\",\"عرض صفحات المصنف من اليمين الى اليسار\")","v":"عرض صفحات المصنف من اليسار الى اليمين"}]
[null,"جدول الحصص المدرسي لعام",null,"2021 / 2022 م",null,null,null,null,null,null,null,null,null,null,null,null,null,{"$f":"INDEX(لست_الحصص,ROW()-1,اللغة)","v":"خمس"},"خمس","Six",false]
[null,"بداية العمل بالجدول ",null,"2021-08-01",null,null,null,null,null,null,null,null,null,null,null,null,null,"ست","ست","Seven",6]
[null,null,null,null,null,null,null,null,null,null,null,null,null,null,null,null,null,"سبع","سبع","Eight"]
[null,null,null,"الأسبوع",null,null,null,null,null,null,null,null,null,null,null,null,null,"ثمان","ثمان","Nine"]
[null,"محافظة /  القليوبيه","السبت","السبت",null,null,null,null,null,null,null,null,null,null,null,null,null,"تسع","تسع","Ten"]
[null,"إدارة    /  غ شبرا ","الاحد","الاحد",null,null,null,null,null,null,null,null,null,null,null,null,null,"عشر","عشر","Eleven "]
[null,"مدرسـة /  الزعيم الخالد","الاثنين","الاثنين",null,null,null,null,null,null,null,null,null,null,null,null,null,"احدى عشر","احدى عشر","Tewlve"]
[null,null,"الثلاثاء","الثلاثاء",null,null,null,null,null,null,null,null,null,null,null,null,null,"اثنى عشر","اثنى عشر"]
[null,"عدد الحصص :","الاربعاء","الاربعاء"]
[null,null,"الخميس","الخميس"]
[]
[null,null,null,null,null,"تعيين فصول معينة للمعلمين"]
["م","المعلمون","الفصول","المواد",null,1,2,3,4,5,6,7,8,9,10]
[1,"عبد الله ","الأول أ","عربي",null,"الأول أ","الأول ب","الأول ج","الأول د"]
[2,"علي","الأول ب","رياضيات",null,"السادس أ","الرابع ب","الرابع ب","الثاني د","الخامس د"]
[3,"أحمد","الأول ج","علوم",null,"الثاني د","الثالث د","الثالث ج","الرابع ج","الرابع د"]
[4,"محمدي","الأول د","هندسة",null,"الخامس ا ","الخامس ب","الخامس ج","الخامس د"]
[5,"عبد السميع","الثاني ا","انجليزي",null,"الرابع ب","السادس ا","السادس ب","السادس ج","السادس د"]
[6,"ابو اسامة","الثاني ب","كيمياء",null,"الرابع أ","الثاني ا","الثاني ب","الثاني ج","الثاني د"]
[7,"اكسيلجي","الثاني ج","فيزياء",null,"السادس أ","الثالث ا","الثالث ب","الثالث ج","الثالث د"]
[8,"كامل","الثاني د","فلسفه",null,"السادس أ","السادس ب"]
[9,"مصطفى","الثالث ا","فرنسي",null,"السادس ب","الثامن أ"]
[10,"كامل","الثالث ب","قرآن",null,"الرابع ب","الثامن ب"]
[11,"مصطفى","الثالث ج"]
[12,"كامل","الثالث د"]
[13,"مصطفى","الرابع ا"]
[14,"كامل","الرابع ب"]
[15,"مصطفى","الرابع ج"]
[16,"كامل","الرابع د"]
[17,"مصطفى","الخامس ا "]
[18,"كامل","الخامس ب"]
[19,"مصطفى","الخامس ج"]
[20,"كامل","الخامس د"]
[21,"مصطفى","السادس ا"]
[22,"كامل","السادس ب"]
[23,"مصطفى","السادس ج"]
[24,"كامل","السادس د"]
[25]
[26]
[27]
[28]
[29]
[30]
[31]
[32]
[33]
[34]
[35]
[36]
[37]
[38]
[39]
[40]
[41]
[42]
[43]
[44]
[45]
[46]
[47]
[48]
[49]
[50]
[51]
[52]
[53]
[54]
[55]
[56]
[57]
[58]
[59]
[60]
[61]
[62]
[63]
[64]
[65]
[66]
[67]
[68]
[69]
[70]
[71]
[72]
[73]
[74]
[75]
[76]
[77]
[78]
[79]
[80]
[81]
[82]
[83]
[84]
[85]
[86]
[87]
[88]
[89]
[90]
[91]
[92]
[93]
[94]
[95]
[96]
[97]
[98]
[99]
[100]
[101]
[102]
[103]
[104]
[105]
[106]
[107]
[108]
[109]
[110]
[111]
[112]
[113]
[114]
[115]
[116]
[117]
[118]
[119]
[120]

{"sheet":"اساسيه","index":1,"n_rows":23,"n_cols":89,"rows_kept":23,"cut":false,"hidden":false,"merged":[[4,0,5,0],[4,1,5,1],[4,2,5,2],[4,4,4,15],[4,88,5,88],[4,16,4,27],[4,28,4,39],[4,40,4,51],[4,52,4,63],[4,64,4,75],[4,76,4,87]]}
[]
[null,"محافظة /  القليوبيه",null,null,null,"خطة إدخال"]
[null,{"$f":"ادارة","v":"إدارة    /  غ شبرا "},null,null,null,{"$f":"\"جدول الحصص المدرسي لعام  \" &العام","v":"جدول الحصص المدرسي لعام  2021 / 2022 م"}]
[null,{"$f":"مدرسة","v":"مدرسـة /  الزعيم الخالد"},null,null,null,{"$f":"\"بداية العمل بالجدول \" & TEXT(تاريخ_البداية,\"yyyy/mm/dd\")&\" م\"","v":"بداية العمل بالجدول 2021/08/01 م"}]
["م","الاســــــــــم","المادة",null,"السبت",null,null,null,null,null,null,null,null,null,null,null,"الاحد",null,null,null,null,null,null,null,null,null,null,null,"الاثنين",null,null,null,null,null,null,null,null,null,null,null,"الثلاثاء",null,null,null,null,null,null,null,null,null,null,null,"الاربعاء",null,null,null,null,null,null,null,null,null,null,null,"الخميس",null,null,null,null,null,null,null,null,null,null,null,null,null,null,null,null,null,null,null,null,null,null,null,"عدد الحصص"]
[null,null,null,null,1,2,3,4,5,6,7,8,9,10,11,12,1,2,3,4,5,6,7,8,9,10,11,12,1,2,3,4,5,6,7,8,9,10,11,12,1,2,3,4,5,6,7,8,9,10,11,12,1,2,3,4,5,6,7,8,9,10,11,12,1,2,3,4,5,6,7,8,9,10,11,12,1,2,3,4,5,6,7,8,9,10,11,12]
[{"$f":"ROW()-6","v":1},"عبد الله ","كيمياء",null,null,null,"الثالث ا",null,null,"الثاني د",null,null,null,null,null,null,null,null,"الثالث ب",null,null,"الثاني ا",null,null,null,null,null,null,null,null,"الثالث ب",null,null,"الثاني ا",null,null,null,null,null,null,null,null,"الثاني ج",null,null,"الثالث ا",null,null,null,null,null,null,null,null,"الأول ب",null,null,"الثاني ب",null,null,null,null,null,null,null,null,"الثاني ج",null,null,"الثاني ب",null,null,null,null,null,null,null,null,null,null,null,null,null,null,null,null,null,null,{"$f":"MyCount_Classroom","v":12}]
[2,"علي","عربي",null,"الأول ب",null,"الثاني ب",null,"الثاني ا",null,"الثاني ج",null,null,null,null,null,"الأول أ",null,"الأول د",null,"الثالث ب",null,"الثاني ج",null,null,null,null,null,"الثاني ب",null,"الثاني ا",null,"الثاني ب",null,"الأول أ",null,null,null,null,null,"الثاني ب",null,"الأول أ",null,"الأول أ",null,"الأول د",null,null,null,null,null,"الثاني د",null,"الأول د",null,"الثاني ج",null,"الأول ج",null,null,null,null,null,"الأول د",null,"الثاني ب",null,"الأول ج",null,"الثالث ا",null,null,null,null,null,null,null,null,null,null,null,null,null,null,null,null,null,24]
[3,"أحمد","علوم",null,"الأول أ","الثالث ا","الثاني ج","الثاني ا","الثالث ب","الثالث ا","الثاني ب",null,null,null,null,null,"الأول ب","الثاني ب","الأول أ","الأول ب","الثاني ج","الثالث ب","الثاني د",null,null,null,null,null,"الثالث ب","الأول أ","الثاني ب","الأول أ","الثاني د","الأول د","الثاني ا",null,null,null,null,null,"الأول أ","الأول ب","الأول د","الأول أ","الثالث ب","الثاني ب","الثالث ا",null,null,null,null,null,"الثالث ا","الثاني ج","الثاني ج","الثالث ا","الأول أ","الأول أ","الثاني ب",null,null,null,null,null,"الأول ج","الأول ب","الثاني د","الأول ج","الثاني ب","الثالث ا","الثاني د",null,null,null,null,null,null,null,null,null,null,null,null,null,null,null,null,null,42]
[4,"محمدي","هندسة",null,"الثاني د","الأول أ","الأول ب","الثاني ب","الأول ب","الأول د","الثاني د",null,null,null,null,null,"الأول ج","الثاني ج","الأول ب","الثاني ا","الثاني ب","الثاني د","الأول ب",null,null,null,null,null,"الثاني ا","الأول ج","الثالث ا","الثاني د","الثالث ا","الأول ب","الثاني ج",null,null,null,null,null,"الثالث ب","الأول د","الثاني ب","الثالث ب","الأول ب","الثاني د","الأول ج",null,null,null,null,null,"الثاني ب","الثاني ا","الثاني ب","الأول د","الثاني ب","الثاني د","الأول أ",null,null,null,null,null,"الأول ب","الثالث ا","الثالث ا","الأول ب","الأول د","الثاني ج","الأول ج",null,null,null,null,null,null,null,null,null,null,null,null,null,null,null,null,null,42]
[5,"عبد السميع","انجليزي",null,"الأول ج","الأول ج","الأول أ","الثالث ب","الثاني ب","الثالث ب","الثالث ب",null,null,null,null,null,"الثاني ب","الأول أ","الثاني ب","الثالث ا","الثالث ا","الثاني ب","الأول ج",null,null,null,null,null,"الأول ج","الثاني ج","الثاني ج","الأول ب","الثالث ب","الأول أ","الأول د",null,null,null,null,null,"الأول ج","الثالث ا","الأول ج","الثاني ب","الأول د","الثاني ا","الثاني ا",null,null,null,null,null,"الثالث ب","الأول أ","الأول ج","الثاني ب","الثالث ب","الثالث ب","الثالث ب",null,null,null,null,null,"الثاني ا","الثاني ج","الثالث ب","الثالث ب","الأول أ","الأول ب","الأول د",null,null,null,null,null,null,null,null,null,null,null,null,null,null,null,null,null,42]
[6,"ابو اسامة","كيمياء",null,"الثالث ا",null,"الثالث ب",null,"الأول ج",null,"الثاني ا",null,null,null,null,null,"الثالث ب",null,"الأول ج",null,"الأول أ",null,"الثاني ا",null,null,null,null,null,"الثاني د",null,"الأول أ",null,"الثاني ج",null,"الأول ب",null,null,null,null,null,"الثالث ا",null,"الثاني ا",null,"الثاني د",null,"الأول ب",null,null,null,null,null,"الأول أ",null,"الثاني ا",null,"الأول ب",null,"الثاني ا",null,null,null,null,null,"الثالث ا",null,"الأول ب",null,"الثاني د",null,"الثاني ا",null,null,null,null,null,null,null,null,null,null,null,null,null,null,null,null,null,24]
[7,"اكسيلجي","فيزياء",null,"الأول د","الثاني ج","الأول د","الأول ب","الثالث ا","الأول ب","الثالث ا",null,null,null,null,null,"الثاني د","الثالث ب","الثاني ا","الأول أ","الأول ب","الأول د","الثالث ب",null,null,null,null,null,"الثالث ا","الثاني ب","الأول ب","الأول ج","الأول ب","الثاني د","الثالث ب",null,null,null,null,null,"الأول ب","الأول أ","الثالث ب","الثاني ا","الأول ج","الأول ب","الثالث ب",null,null,null,null,null,"الأول ب","الثاني ب","الثالث ا","الثاني ا","الثاني ا","الثاني ا","الأول ب",null,null,null,null,null,"الثاني ب","الأول ج","الأول د","الثاني ب","الأول ب","الثاني ا","الأول أ",null,null,null,null,null,null,null,null,null,null,null,null,null,null,null,null,null,42]
[8,"كامل","فلسفه",null,"الثالث ب",null,"الثاني د",null,"الثاني د",null,"الأول ج",null,null,null,null,null,"الثاني ج",null,"الثالث ا",null,"الأول ج",null,"الثاني ب",null,null,null,null,null,"الأول ب",null,"الأول د",null,"الأول د",null,"الثاني د",null,null,null,null,null,"الثاني ا",null,"الثالث ا",null,"الثالث ا",null,"الأول أ",null,null,null,null,null,"الأول د",null,"الثاني د",null,"الأول د",null,"الثالث ا",null,null,null,null,null,"الثاني د",null,"الأول ج",null,"الثاني ج",null,"الثاني ب",null,null,null,null,null,null,null,null,null,null,null,null,null,null,null,null,null,24]
[9,"مصطفى","عربي",null,"الثاني ج","الثالث ب","الأول ج","الأول د","الثاني ج","الأول ج","الأول ب",null,null,null,null,null,"الثالث ا","الأول ج","الثاني د","الأول ج","الأول د","الأول ب","الأول د",null,null,null,null,null,"الأول د","الأول د","الأول ج","الأول د","الأول أ","الثالث ب","الأول ج",null,null,null,null,null,"الثاني د","الثاني ا","الثاني د","الأول ب","الثاني ج","الأول د","الثاني د",null,null,null,null,null,"الثاني ج","الثالث ب","الثالث ب","الثالث ب","الثالث ا","الأول د","الأول د",null,null,null,null,null,"الثاني ج","الثاني د","الأول أ","الثاني د","الثاني ا","الأول ج","الثاني ج",null,null,null,null,null,null,null,null,null,null,null,null,null,null,null,null,null,42]
[10,"ابو اسامة","رياضيات",null,null,"الثاني ا",null,"الثالث ا",null,"الثاني ج",null,null,null,null,null,null,null,"الأول ب",null,"الثاني ج",null,"الثاني ج",null,null,null,null,null,null,null,"الثالث ا",null,"الثاني ا",null,"الأول ج",null,null,null,null,null,null,null,"الأول ج",null,"الأول ج",null,"الثالث ب",null,null,null,null,null,null,null,"الثاني د",null,"الأول ب",null,"الثاني ج",null,null,null,null,null,null,null,"الثالث ب",null,"الثاني ج",null,"الثاني د",null,null,null,null,null,null,null,null,null,null,null,null,null,null,null,null,null,null,18]
[11,"عبد الله ","هندسة",null,"الثاني ب",null,null,"الأول أ",null,null,"الأول أ",null,null,null,null,null,"الثاني ا",null,null,"الثالث ب",null,null,"الثالث ا",null,null,null,null,null,"الثاني ج",null,null,"الثاني ج",null,null,"الثالث ا",null,null,null,null,null,"الأول د",null,null,"الثاني ج",null,null,"الثاني ب",null,null,null,null,null,"الأول ج",null,null,"الثاني د",null,null,"الثاني د",null,null,null,null,null,"الثالث ب",null,null,"الثاني ا",null,null,"الأول ب",null,null,null,null,null,null,null,null,null,null,null,null,null,null,null,null,null,18]
[12,"علي","انجليزي",null,null,"الثاني ب",null,"الثاني ج",null,"الثاني ا",null,null,null,null,null,null,null,"الأول د",null,"الثاني ب",null,"الثالث ا",null,null,null,null,null,null,null,"الثاني د",null,"الثالث ب",null,"الثاني ج",null,null,null,null,null,null,null,"الثاني د",null,"الثاني د",null,"الأول ج",null,null,null,null,null,null,null,"الأول ج",null,"الأول أ",null,"الثالث ا",null,null,null,null,null,null,null,"الثاني ا",null,"الأول د",null,"الأول أ",null,null,null,null,null,null,null,null,null,null,null,null,null,null,null,null,null,null,18]
[13,"كامل","هندسة",null,null,"الأول ب",null,"الثاني د",null,"الأول أ",null,null,null,null,null,null,null,"الثالث ا",null,"الثاني د",null,"الأول أ",null,null,null,null,null,null,null,"الأول ب",null,"الثاني ب",null,"الثاني ب",null,null,null,null,null,null,null,"الثالث ب",null,"الثالث ا",null,"الأول أ",null,null,null,null,null,null,null,"الثالث ا",null,"الأول ج",null,"الأول ب",null,null,null,null,null,null,null,"الأول أ",null,"الأول أ",null,"الثالث ب",null,null,null,null,null,null,null,null,null,null,null,null,null,null,null,null,null,null,18]
[14,"زيد علي","فرنسي",null,"الثاني ا","الثاني د","الثاني ا","الأول ج","الأول أ","الثاني ب","الأول د",null,null,null,null,null,"الأول د","الثاني د","الثاني ج","الأول د","الثاني ا","الأول ج","الأول أ",null,null,null,null,null,"الأول أ","الثاني ا","الثاني د","الثالث ا","الأول ج","الثالث ا","الثاني ب",null,null,null,null,null,"الثاني ج","الثاني ب","الأول ب","الأول د","الثاني ب","الثاني ج","الثاني ج",null,null,null,null,null,"الثاني ا","الأول ب","الأول أ","الثاني ج","الثاني د","الأول ج","الثاني ج",null,null,null,null,null,"الأول أ","الأول د","الثاني ا","الثالث ا","الثالث ب","الأول د","الثالث ب",null,null,null,null,null,null,null,null,null,null,null,null,null,null,null,null,null,42]
[15,"عبد الله ","علوم",null,null,"الأول د",null,null,"الأول د",null,null,null,null,null,null,null,null,"الثاني ا",null,null,"الثاني د",null,null,null,null,null,null,null,null,"الثالث ب",null,null,"الثاني ا",null,null,null,null,null,null,null,null,"الثاني ج",null,null,"الثاني ا",null,null,null,null,null,null,null,null,"الأول د",null,null,"الأول ج",null,null,null,null,null,null,null,null,"الثاني ب",null,null,"الثالث ا",null,null,null,null,null,null,null,null,null,null,null,null,null,null,null,null,null,null,null,12]
[]
["معرفة استكمال الفصول",null,null,null,{"$f":"IF(COUNTA(OFFSET(myrange,0,COLUMN()-2,,1))=COUNTA(الفصول),\"نعم\",\"لا\")","v":"لا"},"لا","لا","لا","لا","لا","لا","لا","لا","لا","لا","لا","لا","لا","لا","لا","لا","لا","لا","لا","لا","لا","لا","لا","لا","لا","لا","لا","لا","لا","لا","لا",{"$f":"IF(COUNTA(OFFSET(myrange,0,COLUMN()-2,,1))=COUNTA(الفصول),\"نعم\",\"لا\")","v":"لا"},"لا","لا","لا","لا","لا","لا","لا","لا","لا","لا","لا","لا","لا","لا","لا","لا","لا","لا","لا","لا","لا","لا","لا","لا","لا","لا","لا","لا","لا","لا","لا",{"$f":"IF(COUNTA(OFFSET(myrange,0,COLUMN()-2,,1))=COUNTA(الفصول),\"نعم\",\"لا\")","v":"لا"},"لا","لا","لا","لا","لا","لا","لا","لا","لا","لا","لا","لا","لا","لا","لا","لا","لا","لا","لا",{"$f":"SUM(CK7:CK22)","v":420}]

{"sheet":"جداول الفصول","index":2,"n_rows":210,"n_cols":14,"rows_kept":210,"cut":false,"hidden":false,"merged":[[13,1,14,1],[15,1,16,1],[17,1,18,1],[5,1,6,1],[7,1,8,1],[9,1,10,1],[11,1,12,1],[26,1,27,1],[28,1,29,1],[30,1,31,1],[32,1,33,1],[34,1,35,1],[36,1,37,1],[38,1,39,1],[47,1,48,1],[49,1,50,1],[51,1,52,1],[53,1,54,1],[55,1,56,1],[57,1,58,1],[59,1,60,1],[68,1,69,1],[70,1,71,1],[72,1,73,1],[74,1,75,1],[76,1,77,1],[78,1,79,1],[80,1,81,1],[89,1,90,1],[91,1,92,1],[93,1,94,1],[95,1,96,1],[97,1,98,1],[99,1,100,1],[101,1,102,1],[110,1,111,1],[112,1,113,1],[114,1,115,1],[116,1,117,1],[118,1,119,1],[120,1,121,1],[122,1,123,1],[131,1,132,1],[133,1,134,1],[135,1,136,1],[137,1,138,1],[139,1,140,1],[141,1,142,1],[143,1,144,1],[152,1,153,1],[154,1,155,1],[156,1,157,1],[158,1,159,1],[160,1,161,1],[162,1,163,1],[164,1,165,1],[173,1,174,1],[175,1,176,1],[177,1,178,1],[179,1,180,1],[181,1,182,1],[202,1,203,1],[204,1,205,1],[206,1,207,1],[183,1,184,1],[185,1,186,1],[194,1,195,1],[196,1,197,1],[198,1,199,1],[200,1,201,1]]}
[]
[null,"محافظة /  القليوبيه",null,null,null,"       جــدول الفصل / الأول أ"]
[null,"إدارة    /  غ شبرا ",null,null,null,{"$f":"\"للعام الدراسـي / \" &العام","v":"للعام الدراسـي / 2021 / 2022 م"}]
[null,"مدرسـة /  الزعيم الخالد",null,null,null,{"$f":"\"بداية العمل به /  \" & TEXT(تاريخ_البداية,\"yyyy/mm/dd\")&\" م\"","v":"بداية العمل به /  2021/08/01 م"}]
[null,"الحصص     الايام ","الأولى","الثانيه","الثالثه","الرابعه","الخامسه","السادسه","السابعه","الثامنه","التاسعه","العاشرة","الحادية عشره","الثانيه عشرة"]
[null,"السبت","عربي","فيزياء","فلسفه","عربي","عربي","كيمياء","هندسة"]
[null,null,"علي","اكسيلجي","كامل","مصطفى","مصطفى","عبد الله ","محمدي"]
[null,"الاحد","فيزياء","انجليزي","علوم","هندسة","كيمياء","انجليزي","هندسة"]
[null,null,"اكسيلجي","عبد السميع","أحمد","محمدي","ابو اسامة","علي","عبد الله "]
[null,"الاثنين","هندسة","رياضيات","عربي","علوم","فلسفه","هندسة","انجليزي"]
[null,null,"محمدي","ابو اسامة","مصطفى","أحمد","كامل","محمدي","عبد السميع"]
[null,"الثلاثاء","عربي","انجليزي","انجليزي","هندسة","انجليزي","فيزياء","كيمياء"]
[null,null,"علي","عبد السميع","عبد السميع","عبد الله ","عبد السميع","اكسيلجي","ابو اسامة"]
[null,"الاربعاء","هندسة","انجليزي","عربي","انجليزي","كيمياء","فيزياء","فلسفه"]
[null,null,"محمدي","عبد السميع","مصطفى","علي","ابو اسامة","اكسيلجي","كامل"]
[null,"الخميس","علوم","فيزياء","كيمياء","انجليزي","كيمياء","فرنسي","عربي"]
[null,null,"أحمد","اكسيلجي","عبد الله ","علي","ابو اسامة","زيد علي","علي"]
[]
[]
[null,null,"عدد الحصص / 42"]
[null,"لجنة الجدول /1               2                        3",null,null,null,null,null,"مدير المدرسة"]
[]
[null,"محافظة /  القليوبيه",null,null,null,"       جــدول الفصل / الأول ب"]
[null,"إدارة    /  غ شبرا ",null,null,null,{"$f":"\"للعام الدراسـي / \" &العام","v":"للعام الدراسـي / 2021 / 2022 م"}]
[null,"مدرسـة /  الزعيم الخالد",null,null,null,{"$f":"\"بداية العمل به /  \" & TEXT(تاريخ_البداية,\"yyyy/mm/dd\")&\" م\"","v":"بداية العمل به /  2021/08/01 م"}]
[null,"الحصص     الايام ","الأولى","الثانيه","الثالثه","الرابعه","الخامسه","السادسه","السابعه","الثامنه","التاسعه","العاشرة","الحادية عشره","الثانيه عشرة"]
[null,"السبت","هندسة","انجليزي","فرنسي","انجليزي","انجليزي","عربي","فلسفه"]
[null,null,"عبد الله ","علي","زيد علي","علي","عبد السميع","مصطفى","كامل"]
[null,"الاحد","عربي","عربي","عربي","علوم","انجليزي","فيزياء","علوم"]
[null,null,"علي","مصطفى","علي","أحمد","عبد السميع","اكسيلجي","أحمد"]
[null,"الاثنين","كيمياء","فيزياء","علوم","انجليزي","علوم","عربي","هندسة"]
[null,null,"ابو اسامة","اكسيلجي","أحمد","عبد السميع","أحمد","مصطفى","عبد الله "]
[null,"الثلاثاء","فيزياء","رياضيات","فرنسي","فرنسي","كيمياء","هندسة","فلسفه"]
[null,null,"اكسيلجي","ابو اسامة","زيد علي","زيد علي","ابو اسامة","محمدي","كامل"]
[null,"الاربعاء","فيزياء","فرنسي","فيزياء","هندسة","فرنسي","هندسة","كيمياء"]
[null,null,"اكسيلجي","زيد علي","اكسيلجي","محمدي","زيد علي","محمدي","ابو اسامة"]
[null,"الخميس","فلسفه","عربي","هندسة","رياضيات","فلسفه","فيزياء","هندسة"]
[null,null,"كامل","مصطفى","محمدي","ابو اسامة","كامل","اكسيلجي","محمدي"]
[]
[]
[null,null,"عدد الحصص / 42"]
[null,"لجنة الجدول /1               2                        3",null,null,null,null,null,"مدير المدرسة"]
[]
[null,"محافظة /  القليوبيه",null,null,null,"       جــدول الفصل / الرابع أ"]
[null,"إدارة    /  غ شبرا ",null,null,null,{"$f":"\"للعام الدراسـي / \" &العام","v":"للعام الدراسـي / 2021 / 2022 م"}]
[null,"مدرسـة /  الزعيم الخالد",null,null,null,{"$f":"\"بداية العمل به /  \" & TEXT(تاريخ_البداية,\"yyyy/mm/dd\")&\" م\"","v":"بداية العمل به /  2021/08/01 م"}]
[null,"الحصص     الايام ","الأولى","الثانيه","الثالثه","الرابعه","الخامسه","السادسه","السابعه","الثامنه","التاسعه","العاشرة","الحادية عشره","الثانيه عشرة"]
[null,"السبت","عربي","عربي","كيمياء","انجليزي","علوم","هندسة","عربي"]
[null,null,"مصطفى","مصطفى","ابو اسامة","عبد السميع","عبد الله ","محمدي","مصطفى"]
[null,"الاحد","فلسفه","فرنسي","عربي","انجليزي","علوم","هندسة","كيمياء"]
[null,null,"كامل","زيد علي","مصطفى","عبد السميع","أحمد","كامل","ابو اسامة"]
[null,"الاثنين","فرنسي","علوم","هندسة","رياضيات","فيزياء","كيمياء","عربي"]
[null,null,"زيد علي","أحمد","محمدي","ابو اسامة","اكسيلجي","عبد الله ","مصطفى"]
[null,"الثلاثاء","فرنسي","هندسة","فلسفه","عربي","فلسفه","كيمياء","هندسة"]
[null,null,"زيد علي","محمدي","كامل","مصطفى","كامل","عبد الله ","عبد الله "]
[null,"الاربعاء","هندسة","علوم","كيمياء","فيزياء","فيزياء","فرنسي","فرنسي"]
[null,null,"عبد الله ","عبد الله ","ابو اسامة","اكسيلجي","اكسيلجي","زيد علي","زيد علي"]
[null,"الخميس","انجليزي","هندسة","عربي","علوم","عربي","هندسة","فيزياء"]
[null,null,"عبد السميع","محمدي","مصطفى","أحمد","علي","كامل","اكسيلجي"]
[]
[]
[null,null,"عدد الحصص / 42"]
[null,"لجنة الجدول /1               2                        3",null,null,null,null,null,"مدير المدرسة"]
[]
[null,"محافظة /  القليوبيه",null,null,null,"       جــدول الفصل / الرابع ب"]
[null,"إدارة    /  غ شبرا ",null,null,null,{"$f":"\"للعام الدراسـي / \" &العام","v":"للعام الدراسـي / 2021 / 2022 م"}]
[null,"مدرسـة /  الزعيم الخالد",null,null,null,{"$f":"\"بداية العمل به /  \" & TEXT(تاريخ_البداية,\"yyyy/mm/dd\")&\" م\"","v":"بداية العمل به /  2021/08/01 م"}]
[null,"الحصص     الايام ","الأولى","الثانيه","الثالثه","الرابعه","الخامسه","السادسه","السابعه","الثامنه","التاسعه","العاشرة","الحادية عشره","الثانيه عشرة"]
[null,"السبت","فلسفه","رياضيات","انجليزي","رياضيات","هندسة","هندسة","انجليزي"]
[null,null,"كامل","ابو اسامة","عبد السميع","ابو اسامة","محمدي","كامل","عبد السميع"]
[null,"الاحد","انجليزي","انجليزي","فرنسي","هندسة","عربي","رياضيات","عربي"]
[null,null,"عبد السميع","علي","زيد علي","كامل","علي","ابو اسامة","علي"]
[null,"الاثنين","انجليزي","علوم","كيمياء","هندسة","عربي","فيزياء","علوم"]
[null,null,"عبد السميع","عبد الله ","عبد الله ","كامل","علي","اكسيلجي","أحمد"]
[null,"الثلاثاء","علوم","هندسة","علوم","انجليزي","عربي","انجليزي","علوم"]
[null,null,"أحمد","كامل","أحمد","عبد السميع","مصطفى","عبد السميع","أحمد"]
[null,"الاربعاء","عربي","هندسة","هندسة","عربي","علوم","هندسة","هندسة"]
[null,null,"مصطفى","كامل","محمدي","مصطفى","أحمد","كامل","عبد الله "]
[null,"الخميس","فرنسي","انجليزي","عربي","هندسة","علوم","هندسة","انجليزي"]
[null,null,"زيد علي","عبد السميع","علي","كامل","عبد الله ","محمدي","عبد السميع"]
[]
[]
[null,null,"عدد الحصص / 42"]
[null,"لجنة الجدول /1               2                        3",null,null,null,null,null,"مدير المدرسة"]
[]
[null,"محافظة /  القليوبيه",null,null,null,"       جــدول الفصل / السادس أ"]
[null,"إدارة    /  غ شبرا ",null,null,null,{"$f":"\"للعام الدراسـي / \" &العام","v":"للعام الدراسـي / 2021 / 2022 م"}]
[null,"مدرسـة /  الزعيم الخالد",null,null,null,{"$f":"\"بداية العمل به /  \" & TEXT(تاريخ_البداية,\"yyyy/mm/dd\")&\" م\"","v":"بداية العمل به /  2021/08/01 م"}]
[null,"الحصص     الايام ","الأولى","الثانيه","الثالثه","الرابعه","الخامسه","السادسه","السابعه","الثامنه","التاسعه","العاشرة","الحادية عشره","الثانيه عشرة"]
[null,"السبت","فيزياء","هندسة","عربي","علوم","فيزياء","انجليزي","عربي"]
[null,null,"اكسيلجي","كامل","علي","أحمد","اكسيلجي","علي","علي"]
[null,"الاحد","علوم","رياضيات","كيمياء","فيزياء","فلسفه","انجليزي","فيزياء"]
[null,null,"أحمد","ابو اسامة","ابو اسامة","اكسيلجي","كامل","عبد السميع","اكسيلجي"]
[null,"الاثنين","عربي","انجليزي","عربي","فرنسي","انجليزي","رياضيات","فلسفه"]
[null,null,"مصطفى","علي","علي","زيد علي","عبد السميع","ابو اسامة","كامل"]
[null,"الثلاثاء","هندسة","عربي","كيمياء","انجليزي","هندسة","فرنسي","فيزياء"]
[null,null,"محمدي","مصطفى","ابو اسامة","علي","محمدي","زيد علي","اكسيلجي"]
[null,"الاربعاء","فرنسي","انجليزي","انجليزي","انجليزي","عربي","كيمياء","فيزياء"]
[null,null,"زيد علي","علي","عبد السميع","عبد السميع","علي","عبد الله ","اكسيلجي"]
[null,"الخميس","عربي","فرنسي","كيمياء","فيزياء","انجليزي","كيمياء","فرنسي"]
[null,null,"علي","زيد علي","ابو اسامة","اكسيلجي","عبد السميع","عبد الله ","زيد علي"]
[]
[]
[null,null,"عدد الحصص / 42"]
[null,"لجنة الجدول /1               2                        3",null,null,null,null,null,"مدير المدرسة"]
[]
[null,"محافظة /  القليوبيه",null,null,null,"       جــدول الفصل / السادس ب"]
[null,"إدارة    /  غ شبرا ",null,null,null,{"$f":"\"للعام الدراسـي / \" &العام","v":"للعام الدراسـي / 2021 / 2022 م"}]
[null,"مدرسـة /  الزعيم الخالد",null,null,null,{"$f":"\"بداية العمل به /  \" & TEXT(تاريخ_البداية,\"yyyy/mm/dd\")&\" م\"","v":"بداية العمل به /  2021/08/01 م"}]
[null,"الحصص     الايام ","الأولى","الثانيه","الثالثه","الرابعه","الخامسه","السادسه","السابعه","الثامنه","التاسعه","العاشرة","الحادية عشره","الثانيه عشرة"]
[null,"السبت","علوم","هندسة","عربي","فرنسي","عربي","فرنسي","كيمياء"]
[null,null,"أحمد","محمدي","مصطفى","زيد علي","علي","زيد علي","ابو اسامة"]
[null,"الاحد","هندسة","هندسة","كيمياء","هندسة","فرنسي","هندسة","فرنسي"]
[null,null,"محمدي","كامل","عبد الله ","عبد الله ","زيد علي","محمدي","زيد علي"]
[null,"الاثنين","علوم","فرنسي","كيمياء","فيزياء","هندسة","انجليزي","فيزياء"]
[null,null,"أحمد","زيد علي","ابو اسامة","اكسيلجي","محمدي","عبد السميع","اكسيلجي"]
[null,"الثلاثاء","انجليزي","علوم","فيزياء","رياضيات","علوم","انجليزي","هندسة"]
[null,null,"عبد السميع","أحمد","اكسيلجي","ابو اسامة","أحمد","علي","محمدي"]
[null,"الاربعاء","فلسفه","هندسة","عربي","علوم","انجليزي","رياضيات","عربي"]
[null,null,"كامل","محمدي","علي","أحمد","عبد السميع","ابو اسامة","علي"]
[null,"الخميس","هندسة","رياضيات","فلسفه","هندسة","هندسة","علوم","علوم"]
[null,null,"محمدي","ابو اسامة","كامل","محمدي","محمدي","أحمد","أحمد"]
[]
[]
[null,null,"عدد الحصص / 42"]
[null,"لجنة الجدول /1               2                        3",null,null,null,null,null,"مدير المدرسة"]
[]
[null,"محافظة /  القليوبيه",null,null,null,"       جــدول الفصل / الثامن أ"]
[null,"إدارة    /  غ شبرا ",null,null,null,{"$f":"\"للعام الدراسـي / \" &العام","v":"للعام الدراسـي / 2021 / 2022 م"}]
[null,"مدرسـة /  الزعيم الخالد",null,null,null,{"$f":"\"بداية العمل به /  \" & TEXT(تاريخ_البداية,\"yyyy/mm/dd\")&\" م\"","v":"بداية العمل به /  2021/08/01 م"}]
[null,"الحصص     الايام ","الأولى","الثانيه","الثالثه","الرابعه","الخامسه","السادسه","السابعه","الثامنه","التاسعه","العاشرة","الحادية عشره","الثانيه عشرة"]
[null,"السبت","فرنسي","انجليزي","كيمياء","هندسة","علوم","انجليزي","فيزياء"]
[null,null,"زيد علي","عبد السميع","عبد الله ","كامل","أحمد","عبد السميع","اكسيلجي"]
[null,"الاحد","هندسة","علوم","فلسفه","رياضيات","فيزياء","عربي","انجليزي"]
[null,null,"عبد الله ","أحمد","كامل","ابو اسامة","اكسيلجي","مصطفى","عبد السميع"]
[null,"الاثنين","عربي","عربي","فلسفه","عربي","كيمياء","فرنسي","هندسة"]
[null,null,"علي","مصطفى","كامل","مصطفى","ابو اسامة","زيد علي","محمدي"]
[null,"الثلاثاء","عربي","فرنسي","هندسة","هندسة","علوم","رياضيات","عربي"]
[null,null,"مصطفى","زيد علي","محمدي","محمدي","عبد الله ","ابو اسامة","مصطفى"]
[null,"الاربعاء","علوم","عربي","كيمياء","هندسة","فلسفه","علوم","هندسة"]
[null,null,"أحمد","مصطفى","عبد الله ","كامل","كامل","أحمد","محمدي"]
[null,"الخميس","كيمياء","علوم","فيزياء","انجليزي","علوم","رياضيات","عربي"]
[null,null,"ابو اسامة","أحمد","اكسيلجي","عبد السميع","أحمد","ابو اسامة","مصطفى"]
[]
[]
[null,null,"عدد الحصص / 42"]
[null,"لجنة الجدول /1               2                        3",null,null,null,null,null,"مدير المدرسة"]
[]
[null,"محافظة /  القليوبيه",null,null,null,"       جــدول الفصل / الثامن ب"]
[null,"إدارة    /  غ شبرا ",null,null,null,{"$f":"\"للعام الدراسـي / \" &العام","v":"للعام الدراسـي / 2021 / 2022 م"}]
[null,"مدرسـة /  الزعيم الخالد",null,null,null,{"$f":"\"بداية العمل به /  \" & TEXT(تاريخ_البداية,\"yyyy/mm/dd\")&\" م\"","v":"بداية العمل به /  2021/08/01 م"}]
[null,"الحصص     الايام ","الأولى","الثانيه","الثالثه","الرابعه","الخامسه","السادسه","السابعه","الثامنه","التاسعه","العاشرة","الحادية عشره","الثانيه عشرة"]
[null,"السبت","هندسة","فرنسي","علوم","فيزياء","فرنسي","علوم","علوم"]
[null,null,"محمدي","زيد علي","أحمد","اكسيلجي","زيد علي","أحمد","أحمد"]
[null,"الاحد","عربي","علوم","انجليزي","انجليزي","هندسة","علوم","هندسة"]
[null,null,"مصطفى","عبد الله ","عبد السميع","علي","محمدي","أحمد","محمدي"]
[null,"الاثنين","هندسة","هندسة","انجليزي","انجليزي","عربي","هندسة","كيمياء"]
[null,null,"عبد الله ","محمدي","عبد السميع","علي","مصطفى","كامل","ابو اسامة"]
[null,"الثلاثاء","هندسة","انجليزي","كيمياء","فيزياء","فرنسي","علوم","عربي"]
[null,null,"عبد الله ","علي","عبد الله ","اكسيلجي","زيد علي","أحمد","علي"]
[null,"الاربعاء","انجليزي","علوم","علوم","هندسة","علوم","انجليزي","عربي"]
[null,null,"عبد السميع","أحمد","أحمد","عبد الله ","عبد الله ","علي","مصطفى"]
[null,"الخميس","هندسة","علوم","علوم","فرنسي","فيزياء","انجليزي","هندسة"]
[null,null,"عبد الله ","عبد الله ","أحمد","زيد علي","اكسيلجي","علي","عبد الله "]
[]
[]
[null,null,"عدد الحصص / 42"]
[null,"لجنة الجدول /1               2                        3",null,null,null,null,null,"مدير المدرسة"]
[]
[null,"محافظة /  القليوبيه",null,null,null,"       جــدول الفصل / التاسع أ"]
[null,"إدارة    /  غ شبرا ",null,null,null,{"$f":"\"للعام الدراسـي / \" &العام","v":"للعام الدراسـي / 2021 / 2022 م"}]
[null,"مدرسـة /  الزعيم الخالد",null,null,null,{"$f":"\"بداية العمل به /  \" & TEXT(تاريخ_البداية,\"yyyy/mm/dd\")&\" م\"","v":"بداية العمل به /  2021/08/01 م"}]
[null,"الحصص     الايام ","الأولى","الثانيه","الثالثه","الرابعه","الخامسه","السادسه","السابعه","الثامنه","التاسعه","العاشرة","الحادية عشره","الثانيه عشرة"]
[null,"السبت","كيمياء","علوم","فيزياء","هندسة","فلسفه","فيزياء","فرنسي"]
[null,null,"ابو اسامة","عبد الله ","اكسيلجي","محمدي","كامل","اكسيلجي","زيد علي"]
[null,"الاحد","كيمياء","هندسة","هندسة","عربي","علوم","كيمياء","فلسفه"]
[null,null,"ابو اسامة","محمدي","محمدي","مصطفى","عبد الله ","عبد الله ","كامل"]
[null,"الاثنين","فيزياء","انجليزي","فيزياء","هندسة","علوم","انجليزي","فرنسي"]
[null,null,"اكسيلجي","عبد السميع","اكسيلجي","عبد الله ","عبد الله ","علي","زيد علي"]
[null,"الثلاثاء","كيمياء","علوم","عربي","هندسة","فيزياء","هندسة","انجليزي"]
[null,null,"ابو اسامة","عبد الله ","مصطفى","كامل","اكسيلجي","كامل","عبد السميع"]
[null,"الاربعاء","عربي","فيزياء","فلسفه","رياضيات","عربي","انجليزي","انجليزي"]
[null,null,"علي","اكسيلجي","كامل","ابو اسامة","مصطفى","عبد السميع","عبد السميع"]
[null,"الخميس","عربي","هندسة","انجليزي","هندسة","عربي","انجليزي","فلسفه"]
[null,null,"مصطفى","كامل","عبد السميع","عبد الله ","مصطفى","عبد السميع","كامل"]
[]
[]
[null,null,"عدد الحصص / 42"]
[null,"لجنة الجدول /1               2                        3",null,null,null,null,null,"مدير المدرسة"]
[]
[null,"محافظة /  القليوبيه",null,null,null,"       جــدول الفصل / 1-10"]
[null,"إدارة    /  غ شبرا ",null,null,null,{"$f":"\"للعام الدراسـي / \" &العام","v":"للعام الدراسـي / 2021 / 2022 م"}]
[null,"مدرسـة /  الزعيم الخالد",null,null,null,{"$f":"\"بداية العمل به /  \" & TEXT(تاريخ_البداية,\"yyyy/mm/dd\")&\" م\"","v":"بداية العمل به /  2021/08/01 م"}]
[null,"الحصص     الايام ","الأولى","الثانيه","الثالثه","الرابعه","الخامسه","السادسه","السابعه","الثامنه","التاسعه","العاشرة","الحادية عشره","الثانيه عشرة"]
[null,"السبت","انجليزي","علوم","هندسة","هندسة","كيمياء","رياضيات","هندسة"]
[null,null,"عبد السميع","أحمد","محمدي","عبد الله ","ابو اسامة","ابو اسامة","عبد الله "]
[null,"الاحد","فرنسي","فيزياء","فيزياء","فرنسي","عربي","فرنسي","عربي"]
[null,null,"زيد علي","اكسيلجي","اكسيلجي","زيد علي","مصطفى","زيد علي","مصطفى"]
[null,"الاثنين","فلسفه","هندسة","فرنسي","هندسة","فرنسي","علوم","عربي"]
[null,null,"كامل","كامل","زيد علي","محمدي","زيد علي","أحمد","علي"]
[null,"الثلاثاء","فلسفه","فيزياء","عربي","علوم","عربي","عربي","فرنسي"]
[null,null,"كامل","اكسيلجي","علي","أحمد","علي","مصطفى","زيد علي"]
[null,"الاربعاء","كيمياء","رياضيات","فرنسي","فرنسي","هندسة","عربي","علوم"]
[null,null,"ابو اسامة","ابو اسامة","زيد علي","زيد علي","محمدي","مصطفى","أحمد"]
[null,"الخميس","فيزياء","انجليزي","فرنسي","عربي","فرنسي","عربي","كيمياء"]
[null,null,"اكسيلجي","علي","زيد علي","مصطفى","زيد علي","مصطفى","ابو اسامة"]
[]
[]
[null,null,"عدد الحصص / 42"]
[null,"لجنة الجدول /1               2                        3",null,null,null,null,null,"مدير المدرسة"]

{"sheet":"جداول المعلمين","index":3,"n_rows":210,"n_cols":14,"rows_kept":210,"cut":false,"hidden":false,"merged":[[13,1,14,1],[15,1,16,1],[17,1,18,1],[5,1,6,1],[7,1,8,1],[9,1,10,1],[11,1,12,1],[26,1,27,1],[28,1,29,1],[30,1,31,1],[32,1,33,1],[34,1,35,1],[36,1,37,1],[38,1,39,1],[47,1,48,1],[49,1,50,1],[51,1,52,1],[53,1,54,1],[55,1,56,1],[57,1,58,1],[59,1,60,1],[68,1,69,1],[70,1,71,1],[72,1,73,1],[74,1,75,1],[76,1,77,1],[78,1,79,1],[80,1,81,1],[89,1,90,1],[91,1,92,1],[93,1,94,1],[95,1,96,1],[97,1,98,1],[99,1,100,1],[101,1,102,1],[110,1,111,1],[112,1,113,1],[114,1,115,1],[116,1,117,1],[118,1,119,1],[120,1,121,1],[122,1,123,1],[131,1,132,1],[133,1,134,1],[135,1,136,1],[137,1,138,1],[139,1,140,1],[141,1,142,1],[143,1,144,1],[152,1,153,1],[154,1,155,1],[156,1,157,1],[158,1,159,1],[160,1,161,1],[162,1,163,1],[164,1,165,1],[173,1,174,1],[175,1,176,1],[177,1,178,1],[179,1,180,1],[181,1,182,1],[202,1,203,1],[204,1,205,1],[206,1,207,1],[183,1,184,1],[185,1,186,1],[194,1,195,1],[196,1,197,1],[198,1,199,1],[200,1,201,1]]}
[]
[null,"محافظة /  القليوبيه",null,null,null,"       جــدول المعلم  / عبد الله "]
[null,"إدارة    /  غ شبرا ",null,null,null,{"$f":"\"للعام الدراسـي / \" &العام","v":"للعام الدراسـي / 2021 / 2022 م"}]
[null,"مدرسـة /  الزعيم الخالد",null,null,null,{"$f":"\"بداية العمل به /  \" & TEXT(تاريخ_البداية,\"yyyy/mm/dd\")&\" م\"","v":"بداية العمل به /  2021/08/01 م"}]
[null,"الحصص     الايام ","الأولى","الثانيه","الثالثه","الرابعه","الخامسه","السادسه","السابعه","الثامنه","التاسعه","العاشرة","الحادية عشره","الثانيه عشرة"]
[null,"السبت","هندسة","علوم","كيمياء","هندسة","علوم","كيمياء","هندسة"]
[null,null,"الأول ب","التاسع أ","الثامن أ","1-10","الرابع أ","الأول أ","1-10"]
[null,"الاحد","هندسة","علوم","كيمياء","هندسة","علوم","كيمياء","هندسة"]
[null,null,"الثامن أ","الثامن ب","السادس ب","السادس ب","التاسع أ","التاسع أ","الأول أ"]
[null,"الاثنين","هندسة","علوم","كيمياء","هندسة","علوم","كيمياء","هندسة"]
[null,null,"الثامن ب","الرابع ب","الرابع ب","التاسع أ","التاسع أ","الرابع أ","الأول ب"]
[null,"الثلاثاء","هندسة","علوم","كيمياء","هندسة","علوم","كيمياء","هندسة"]
[null,null,"الثامن ب","التاسع أ","الثامن ب","الأول أ","الثامن أ","الرابع أ","الرابع أ"]
[null,"الاربعاء","هندسة","علوم","كيمياء","هندسة","علوم","كيمياء","هندسة"]
[null,null,"الرابع أ","الرابع أ","الثامن أ","الثامن ب","الثامن ب","السادس أ","الرابع ب"]
[null,"الخميس","هندسة","علوم","كيمياء","هندسة","علوم","كيمياء","هندسة"]
[null,null,"الثامن ب","الثامن ب","الأول أ","التاسع أ","الرابع ب","السادس أ","الثامن ب"]
[]
[]
[null,"المواد /","كيمياء + هندسة + علوم  عدد الحصص / 42"]
[null,"لجنة الجدول /1               2                        3",null,null,null,null,null,"مدير المدرسة"]
[]
[null,"محافظة /  القليوبيه",null,null,null,"       جــدول المعلم  / علي"]
[null,"إدارة    /  غ شبرا ",null,null,null,{"$f":"\"للعام الدراسـي / \" &العام","v":"للعام الدراسـي / 2021 / 2022 م"}]
[null,"مدرسـة /  الزعيم الخالد",null,null,null,{"$f":"\"بداية العمل به /  \" & TEXT(تاريخ_البداية,\"yyyy/mm/dd\")&\" م\"","v":"بداية العمل به /  2021/08/01 م"}]
[null,"الحصص     الايام ","الأولى","الثانيه","الثالثه","الرابعه","الخامسه","السادسه","السابعه","الثامنه","التاسعه","العاشرة","الحادية عشره","الثانيه عشرة"]
[null,"السبت","عربي","انجليزي","عربي","انجليزي","عربي","انجليزي","عربي"]
[null,null,"الأول أ","الأول ب","السادس أ","الأول ب","السادس ب","السادس أ","السادس أ"]
[null,"الاحد","عربي","انجليزي","عربي","انجليزي","عربي","انجليزي","عربي"]
[null,null,"الأول ب","الرابع ب","الأول ب","الثامن ب","الرابع ب","الأول أ","الرابع ب"]
[null,"الاثنين","عربي","انجليزي","عربي","انجليزي","عربي","انجليزي","عربي"]
[null,null,"الثامن أ","السادس أ","السادس أ","الثامن ب","الرابع ب","التاسع أ","1-10"]
[null,"الثلاثاء","عربي","انجليزي","عربي","انجليزي","عربي","انجليزي","عربي"]
[null,null,"الأول أ","الثامن ب","1-10","السادس أ","1-10","السادس ب","الثامن ب"]
[null,"الاربعاء","عربي","انجليزي","عربي","انجليزي","عربي","انجليزي","عربي"]
[null,null,"التاسع أ","السادس أ","السادس ب","الأول أ","السادس أ","الثامن ب","السادس ب"]
[null,"الخميس","عربي","انجليزي","عربي","انجليزي","عربي","انجليزي","عربي"]
[null,null,"السادس أ","1-10","الرابع ب","الأول أ","الرابع أ","الثامن ب","الأول أ"]
[]
[]
[null,"المواد /","عربي + انجليزي  عدد الحصص / 42"]
[null,"لجنة الجدول /1               2                        3",null,null,null,null,null,"مدير المدرسة"]
[]
[null,"محافظة /  القليوبيه",null,null,null,"       جــدول المعلم  / أحمد"]
[null,"إدارة    /  غ شبرا ",null,null,null,{"$f":"\"للعام الدراسـي / \" &العام","v":"للعام الدراسـي / 2021 / 2022 م"}]
[null,"مدرسـة /  الزعيم الخالد",null,null,null,{"$f":"\"بداية العمل به /  \" & TEXT(تاريخ_البداية,\"yyyy/mm/dd\")&\" م\"","v":"بداية العمل به /  2021/08/01 م"}]
[null,"الحصص     الايام ","الأولى","الثانيه","الثالثه","الرابعه","الخامسه","السادسه","السابعه","الثامنه","التاسعه","العاشرة","الحادية عشره","الثانيه عشرة"]
[null,"السبت","علوم","علوم","علوم","علوم","علوم","علوم","علوم"]
[null,null,"السادس ب","1-10","الثامن ب","السادس أ","الثامن أ","الثامن ب","الثامن ب"]
[null,"الاحد","علوم","علوم","علوم","علوم","علوم","علوم","علوم"]
[null,null,"السادس أ","الثامن أ","الأول أ","الأول ب","الرابع أ","الثامن ب","الأول ب"]
[null,"الاثنين","علوم","علوم","علوم","علوم","علوم","علوم","علوم"]
[null,null,"السادس ب","الرابع أ","الأول ب","الأول أ","الأول ب","1-10","الرابع ب"]
[null,"الثلاثاء","علوم","علوم","علوم","علوم","علوم","علوم","علوم"]
[null,null,"الرابع ب","السادس ب","الرابع ب","1-10","السادس ب","الثامن ب","الرابع ب"]
[null,"الاربعاء","علوم","علوم","علوم","علوم","علوم","علوم","علوم"]
[null,null,"الثامن أ","الثامن ب","الثامن ب","السادس ب","الرابع ب","الثامن أ","1-10"]
[null,"الخميس","علوم","علوم","علوم","علوم","علوم","علوم","علوم"]
[null,null,"الأول أ","الثامن أ","الثامن ب","الرابع أ","الثامن أ","السادس ب","السادس ب"]
[]
[]
[null,"المواد /","علوم  عدد الحصص / 42"]
[null,"لجنة الجدول /1               2                        3",null,null,null,null,null,"مدير المدرسة"]
[]
[null,"محافظة /  القليوبيه",null,null,null,"       جــدول المعلم  / محمدي"]
[null,"إدارة    /  غ شبرا ",null,null,null,{"$f":"\"للعام الدراسـي / \" &العام","v":"للعام الدراسـي / 2021 / 2022 م"}]
[null,"مدرسـة /  الزعيم الخالد",null,null,null,{"$f":"\"بداية العمل به /  \" & TEXT(تاريخ_البداية,\"yyyy/mm/dd\")&\" م\"","v":"بداية العمل به /  2021/08/01 م"}]
[null,"الحصص     الايام ","الأولى","الثانيه","الثالثه","الرابعه","الخامسه","السادسه","السابعه","الثامنه","التاسعه","العاشرة","الحادية عشره","الثانيه عشرة"]
[null,"السبت","هندسة","هندسة","هندسة","هندسة","هندسة","هندسة","هندسة"]
[null,null,"الثامن ب","السادس ب","1-10","التاسع أ","الرابع ب","الرابع أ","الأول أ"]
[null,"الاحد","هندسة","هندسة","هندسة","هندسة","هندسة","هندسة","هندسة"]
[null,null,"السادس ب","التاسع أ","التاسع أ","الأول أ","الثامن ب","السادس ب","الثامن ب"]
[null,"الاثنين","هندسة","هندسة","هندسة","هندسة","هندسة","هندسة","هندسة"]
[null,null,"الأول أ","الثامن ب","الرابع أ","1-10","السادس ب","الأول أ","الثامن أ"]
[null,"الثلاثاء","هندسة","هندسة","هندسة","هندسة","هندسة","هندسة","هندسة"]
[null,null,"السادس أ","الرابع أ","الثامن أ","الثامن أ","السادس أ","الأول ب","السادس ب"]
[null,"الاربعاء","هندسة","هندسة","هندسة","هندسة","هندسة","هندسة","هندسة"]
[null,null,"الأول أ","السادس ب","الرابع ب","الأول ب","1-10","الأول ب","الثامن أ"]
[null,"الخميس","هندسة","هندسة","هندسة","هندسة","هندسة","هندسة","هندسة"]
[null,null,"السادس ب","الرابع أ","الأول ب","السادس ب","السادس ب","الرابع ب","الأول ب"]
[]
[]
[null,"المواد /","هندسة  عدد الحصص / 42"]
[null,"لجنة الجدول /1               2                        3",null,null,null,null,null,"مدير المدرسة"]
[]
[null,"محافظة /  القليوبيه",null,null,null,"       جــدول المعلم  / عبد السميع"]
[null,"إدارة    /  غ شبرا ",null,null,null,{"$f":"\"للعام الدراسـي / \" &العام","v":"للعام الدراسـي / 2021 / 2022 م"}]
[null,"مدرسـة /  الزعيم الخالد",null,null,null,{"$f":"\"بداية العمل به /  \" & TEXT(تاريخ_البداية,\"yyyy/mm/dd\")&\" م\"","v":"بداية العمل به /  2021/08/01 م"}]
[null,"الحصص     الايام ","الأولى","الثانيه","الثالثه","الرابعه","الخامسه","السادسه","السابعه","الثامنه","التاسعه","العاشرة","الحادية عشره","الثانيه عشرة"]
[null,"السبت","انجليزي","انجليزي","انجليزي","انجليزي","انجليزي","انجليزي","انجليزي"]
[null,null,"1-10","الثامن أ","الرابع ب","الرابع أ","الأول ب","الثامن أ","الرابع ب"]
[null,"الاحد","انجليزي","انجليزي","انجليزي","انجليزي","انجليزي","انجليزي","انجليزي"]
[null,null,"الرابع ب","الأول أ","الثامن ب","الرابع أ","الأول ب","السادس أ","الثامن أ"]
[null,"الاثنين","انجليزي","انجليزي","انجليزي","انجليزي","انجليزي","انجليزي","انجليزي"]
[null,null,"الرابع ب","التاسع أ","الثامن ب","الأول ب","السادس أ","السادس ب","الأول أ"]
[null,"الثلاثاء","انجليزي","انجليزي","انجليزي","انجليزي","انجليزي","انجليزي","انجليزي"]
[null,null,"السادس ب","الأول أ","الأول أ","الرابع ب","الأول أ","الرابع ب","التاسع أ"]
[null,"الاربعاء","انجليزي","انجليزي","انجليزي","انجليزي","انجليزي","انجليزي","انجليزي"]
[null,null,"الثامن ب","الأول أ","السادس أ","السادس أ","السادس ب","التاسع أ","التاسع أ"]
[null,"الخميس","انجليزي","انجليزي","انجليزي","انجليزي","انجليزي","انجليزي","انجليزي"]
[null,null,"الرابع أ","الرابع ب","التاسع أ","الثامن أ","السادس أ","التاسع أ","الرابع ب"]
[]
[]
[null,"المواد /","انجليزي  عدد الحصص / 42"]
[null,"لجنة الجدول /1               2                        3",null,null,null,null,null,"مدير المدرسة"]
[]
[null,"محافظة /  القليوبيه",null,null,null,"       جــدول المعلم  / ابو اسامة"]
[null,"إدارة    /  غ شبرا ",null,null,null,{"$f":"\"للعام الدراسـي / \" &العام","v":"للعام الدراسـي / 2021 / 2022 م"}]
[null,"مدرسـة /  الزعيم الخالد",null,null,null,{"$f":"\"بداية العمل به /  \" & TEXT(تاريخ_البداية,\"yyyy/mm/dd\")&\" م\"","v":"بداية العمل به /  2021/08/01 م"}]
[null,"الحصص     الايام ","الأولى","الثانيه","الثالثه","الرابعه","الخامسه","السادسه","السابعه","الثامنه","التاسعه","العاشرة","الحادية عشره","الثانيه عشرة"]
[null,"السبت","كيمياء","رياضيات","كيمياء","رياضيات","كيمياء","رياضيات","كيمياء"]
[null,null,"التاسع أ","الرابع ب","الرابع أ","الرابع ب","1-10","1-10","السادس ب"]
[null,"الاحد","كيمياء","رياضيات","كيمياء","رياضيات","كيمياء","رياضيات","كيمياء"]
[null,null,"التاسع أ","السادس أ","السادس أ","الثامن أ","الأول أ","الرابع ب","الرابع أ"]
[null,"الاثنين","كيمياء","رياضيات","كيمياء","رياضيات","كيمياء","رياضيات","كيمياء"]
[null,null,"الأول ب","الأول أ","السادس ب","الرابع أ","الثامن أ","السادس أ","الثامن ب"]
[null,"الثلاثاء","كيمياء","رياضيات","كيمياء","رياضيات","كيمياء","رياضيات","كيمياء"]
[null,null,"التاسع أ","الأول ب","السادس أ","السادس ب","الأول ب","الثامن أ","الأول أ"]
[null,"الاربعاء","كيمياء","رياضيات","كيمياء","رياضيات","كيمياء","رياضيات","كيمياء"]
[null,null,"1-10","1-10","الرابع أ","التاسع أ","الأول أ","السادس ب","الأول ب"]
[null,"الخميس","كيمياء","رياضيات","كيمياء","رياضيات","كيمياء","رياضيات","كيمياء"]
[null,null,"الثامن أ","السادس ب","السادس أ","الأول ب","الأول أ","الثامن أ","1-10"]
[]
[]
[null,"المواد /","كيمياء + رياضيات  عدد الحصص / 42"]
[null,"لجنة الجدول /1               2                        3",null,null,null,null,null,"مدير المدرسة"]
[]
[null,"محافظة /  القليوبيه",null,null,null,"       جــدول المعلم  / اكسيلجي"]
[null,"إدارة    /  غ شبرا ",null,null,null,{"$f":"\"للعام الدراسـي / \" &العام","v":"للعام الدراسـي / 2021 / 2022 م"}]
[null,"مدرسـة /  الزعيم الخالد",null,null,null,{"$f":"\"بداية العمل به /  \" & TEXT(تاريخ_البداية,\"yyyy/mm/dd\")&\" م\"","v":"بداية العمل به /  2021/08/01 م"}]
[null,"الحصص     الايام ","الأولى","الثانيه","الثالثه","الرابعه","الخامسه","السادسه","السابعه","الثامنه","التاسعه","العاشرة","الحادية عشره","الثانيه عشرة"]
[null,"السبت","فيزياء","فيزياء","فيزياء","فيزياء","فيزياء","فيزياء","فيزياء"]
[null,null,"السادس أ","الأول أ","التاسع أ","الثامن ب","السادس أ","التاسع أ","الثامن أ"]
[null,"الاحد","فيزياء","فيزياء","فيزياء","فيزياء","فيزياء","فيزياء","فيزياء"]
[null,null,"الأول أ","1-10","1-10","السادس أ","الثامن أ","الأول ب","السادس أ"]
[null,"الاثنين","فيزياء","فيزياء","فيزياء","فيزياء","فيزياء","فيزياء","فيزياء"]
[null,null,"التاسع أ","الأول ب","التاسع أ","السادس ب","الرابع أ","الرابع ب","السادس ب"]
[null,"الثلاثاء","فيزياء","فيزياء","فيزياء","فيزياء","فيزياء","فيزياء","فيزياء"]
[null,null,"الأول ب","1-10","السادس ب","الثامن ب","التاسع أ","الأول أ","السادس أ"]
[null,"الاربعاء","فيزياء","فيزياء","فيزياء","فيزياء","فيزياء","فيزياء","فيزياء"]
[null,null,"الأول ب","التاسع أ","الأول ب","الرابع أ","الرابع أ","الأول أ","السادس أ"]
[null,"الخميس","فيزياء","فيزياء","فيزياء","فيزياء","فيزياء","فيزياء","فيزياء"]
[null,null,"1-10","الأول أ","الثامن أ","السادس أ","الثامن ب","الأول ب","الرابع أ"]
[]
[]
[null,"المواد /","فيزياء  عدد الحصص / 42"]
[null,"لجنة الجدول /1               2                        3",null,null,null,null,null,"مدير المدرسة"]
[]
[null,"محافظة /  القليوبيه",null,null,null,"       جــدول المعلم  / كامل"]
[null,"إدارة    /  غ شبرا ",null,null,null,{"$f":"\"للعام الدراسـي / \" &العام","v":"للعام الدراسـي / 2021 / 2022 م"}]
[null,"مدرسـة /  الزعيم الخالد",null,null,null,{"$f":"\"بداية العمل به /  \" & TEXT(تاريخ_البداية,\"yyyy/mm/dd\")&\" م\"","v":"بداية العمل به /  2021/08/01 م"}]
[null,"الحصص     الايام ","الأولى","الثانيه","الثالثه","الرابعه","الخامسه","السادسه","السابعه","الثامنه","التاسعه","العاشرة","الحادية عشره","الثانيه عشرة"]
[null,"السبت","فلسفه","هندسة","فلسفه","هندسة","فلسفه","هندسة","فلسفه"]
[null,null,"الرابع ب","السادس أ","الأول أ","الثامن أ","التاسع أ","الرابع ب","الأول ب"]
[null,"الاحد","فلسفه","هندسة","فلسفه","هندسة","فلسفه","هندسة","فلسفه"]
[null,null,"الرابع أ","السادس ب","الثامن أ","الرابع ب","السادس أ","الرابع أ","التاسع أ"]
[null,"الاثنين","فلسفه","هندسة","فلسفه","هندسة","فلسفه","هندسة","فلسفه"]
[null,null,"1-10","1-10","الثامن أ","الرابع ب","الأول أ","الثامن ب","السادس أ"]
[null,"الثلاثاء","فلسفه","هندسة","فلسفه","هندسة","فلسفه","هندسة","فلسفه"]
[null,null,"1-10","الرابع ب","الرابع أ","التاسع أ","الرابع أ","التاسع أ","الأول ب"]
[null,"الاربعاء","فلسفه","هندسة","فلسفه","هندسة","فلسفه","هندسة","فلسفه"]
[null,null,"السادس ب","الرابع ب","التاسع أ","الثامن أ","الثامن أ","الرابع ب","الأول أ"]
[null,"الخميس","فلسفه","هندسة","فلسفه","هندسة","فلسفه","هندسة","فلسفه"]
[null,null,"الأول ب","التاسع أ","السادس ب","الرابع ب","الأول ب","الرابع أ","التاسع أ"]
[]
[]
[null,"المواد /","فلسفه + هندسة  عدد الحصص / 42"]
[null,"لجنة الجدول /1               2                        3",null,null,null,null,null,"مدير المدرسة"]
[]
[null,"محافظة /  القليوبيه",null,null,null,"       جــدول المعلم  / مصطفى"]
[null,"إدارة    /  غ شبرا ",null,null,null,{"$f":"\"للعام الدراسـي / \" &العام","v":"للعام الدراسـي / 2021 / 2022 م"}]
[null,"مدرسـة /  الزعيم الخالد",null,null,null,{"$f":"\"بداية العمل به /  \" & TEXT(تاريخ_البداية,\"yyyy/mm/dd\")&\" م\"","v":"بداية العمل به /  2021/08/01 م"}]
[null,"الحصص     الايام ","الأولى","الثانيه","الثالثه","الرابعه","الخامسه","السادسه","السابعه","الثامنه","التاسعه","العاشرة","الحادية عشره","الثانيه عشرة"]
[null,"السبت","عربي","عربي","عربي","عربي","عربي","عربي","عربي"]
[null,null,"الرابع أ","الرابع أ","السادس ب","الأول أ","الأول أ","الأول ب","الرابع أ"]
[null,"الاحد","عربي","عربي","عربي","عربي","عربي","عربي","عربي"]
[null,null,"الثامن ب","الأول ب","الرابع أ","التاسع أ","1-10","الثامن أ","1-10"]
[null,"الاثنين","عربي","عربي","عربي","عربي","عربي","عربي","عربي"]
[null,null,"السادس أ","الثامن أ","الأول أ","الثامن أ","الثامن ب","الأول ب","الرابع أ"]
[null,"الثلاثاء","عربي","عربي","عربي","عربي","عربي","عربي","عربي"]
[null,null,"الثامن أ","السادس أ","التاسع أ","الرابع أ","الرابع ب","1-10","الثامن أ"]
[null,"الاربعاء","عربي","عربي","عربي","عربي","عربي","عربي","عربي"]
[null,null,"الرابع ب","الثامن أ","الأول أ","الرابع ب","التاسع أ","1-10","الثامن ب"]
[null,"الخميس","عربي","عربي","عربي","عربي","عربي","عربي","عربي"]
[null,null,"التاسع أ","الأول ب","الرابع أ","1-10","التاسع أ","1-10","الثامن أ"]
[]
[]
[null,"المواد /","عربي  عدد الحصص / 42"]
[null,"لجنة الجدول /1               2                        3",null,null,null,null,null,"مدير المدرسة"]
[]
[null,"محافظة /  القليوبيه",null,null,null,"       جــدول المعلم  / زيد علي"]
[null,"إدارة    /  غ شبرا ",null,null,null,{"$f":"\"للعام الدراسـي / \" &العام","v":"للعام الدراسـي / 2021 / 2022 م"}]
[null,"مدرسـة /  الزعيم الخالد",null,null,null,{"$f":"\"بداية العمل به /  \" & TEXT(تاريخ_البداية,\"yyyy/mm/dd\")&\" م\"","v":"بداية العمل به /  2021/08/01 م"}]
[null,"الحصص     الايام ","الأولى","الثانيه","الثالثه","الرابعه","الخامسه","السادسه","السابعه","الثامنه","التاسعه","العاشرة","الحادية عشره","الثانيه عشرة"]
[null,"السبت","فرنسي","فرنسي","فرنسي","فرنسي","فرنسي","فرنسي","فرنسي"]
[null,null,"الثامن أ","الثامن ب","الأول ب","السادس ب","الثامن ب","السادس ب","التاسع أ"]
[null,"الاحد","فرنسي","فرنسي","فرنسي","فرنسي","فرنسي","فرنسي","فرنسي"]
[null,null,"1-10","الرابع أ","الرابع ب","1-10","السادس ب","1-10","السادس ب"]
[null,"الاثنين","فرنسي","فرنسي","فرنسي","فرنسي","فرنسي","فرنسي","فرنسي"]
[null,null,"الرابع أ","السادس ب","1-10","السادس أ","1-10","الثامن أ","التاسع أ"]
[null,"الثلاثاء","فرنسي","فرنسي","فرنسي","فرنسي","فرنسي","فرنسي","فرنسي"]
[null,null,"الرابع أ","الثامن أ","الأول ب","الأول ب","الثامن ب","السادس أ","1-10"]
[null,"الاربعاء","فرنسي","فرنسي","فرنسي","فرنسي","فرنسي","فرنسي","فرنسي"]
[null,null,"السادس أ","الأول ب","1-10","1-10","الأول ب","الرابع أ","الرابع أ"]
[null,"الخميس","فرنسي","فرنسي","فرنسي","فرنسي","فرنسي","فرنسي","فرنسي"]
[null,null,"الرابع ب","السادس أ","1-10","الثامن ب","1-10","الأول أ","السادس أ"]
[]
[]
[null,"المواد /","فرنسي  عدد الحصص / 42"]
[null,"لجنة الجدول /1               2                        3",null,null,null,null,null,"مدير المدرسة"]

{"sheet":"جداول االمواد","index":4,"n_rows":21,"n_cols":14,"rows_kept":21,"cut":false,"hidden":false,"merged":[[13,1,14,1],[15,1,16,1],[17,1,18,1],[5,1,6,1],[7,1,8,1],[9,1,10,1],[11,1,12,1]]}
[]
[null,"محافظة /  القليوبيه"]
[null,"إدارة    /  غ شبرا ",null,null,null,{"$f":"\"للعام الدراسـي / \" &العام","v":"للعام الدراسـي / 2021 / 2022 م"}]
[null,"مدرسـة /  الزعيم الخالد",null,null,null,{"$f":"\"بداية العمل به /  \" & TEXT(تاريخ_البداية,\"yyyy/mm/dd\")&\" م\"","v":"بداية العمل به /  2021/08/01 م"}]
[null,"الحصص     الايام ","الأولى","الثانيه","الثالثه","الرابعه","الخامسه","السادسه","السابعه","الثامنه","التاسعه","العاشرة","الحادية عشره","الثانيه عشرة"]
[null,"السبت"]
[]
[null,"الاحد"]
[]
[null,"الاثنين"]
[]
[null,"الثلاثاء"]
[]
[null,"الاربعاء"]
[]
[null,"الخميس"]
[]
[]
[]
[null,"المعلمون / "]
[null,"لجنة الجدول /1               2                        3",null,null,null,null,null,"مدير المدرسة"]

{"sheet":"جدول إجمالي الفصول","index":5,"n_rows":249,"n_cols":87,"rows_kept":249,"cut":false,"hidden":false,"merged":[[3,51,3,62],[3,63,3,74],[3,75,3,86],[3,3,3,14],[3,15,3,26],[3,27,3,38],[3,39,3,50],[7,2,8,2],[9,2,10,2],[11,2,12,2],[13,2,14,2],[15,2,16,2],[17,2,18,2],[19,2,20,2],[21,2,22,2],[23,2,24,2],[25,2,26,2],[27,2,28,2],[29,2,30,2],[31,2,32,2],[33,2,34,2],[35,2,36,2],[37,2,38,2],[39,2,40,2],[41,2,42,2],[43,2,44,2],[45,2,46,2],[47,2,48,2],[49,2,50,2],[51,2,52,2],[53,2,54,2],[55,2,56,2],[57,2,58,2],[59,2,60,2],[61,2,62,2],[63,2,64,2],[65,2,66,2],[67,2,68,2],[69,2,70,2],[71,2,72,2],[73,2,74,2],[75,2,76,2],[77,2,78,2],[79,2,80,2],[81,2,82,2],[83,2,84,2],[85,2,86,2],[87,2,88,2],[89,2,90,2],[91,2,92,2],[101,2,102,2],[103,2,104,2],[93,2,94,2],[95,2,96,2],[97,2,98,2],[99,2,100,2],[105,2,106,2],[107,2,108,2],[109,2,110,2],[111,2,112,2],[113,2,114,2],[115,2,116,2],[117,2,118,2],[119,2,120,2],[121,2,122,2],[123,2,124,2],[125,2,126,2],[127,2,128,2],[129,2,130,2],[131,2,132,2],[133,2,134,2],[135,2,136,2],[137,2,138,2],[139,2,140,2],[141,2,142,2],[143,2,144,2],[145,2,146,2],[147,2,148,2],[149,2,150,2],[151,2,152,2],[153,2,154,2],[155,2,156,2],[157,2,158,2],[159,2,160,2],[161,2,162,2],[163,2,164,2],[165,2,166,2],[167,2,168,2],[169,2,170,2],[171,2,172,2],[173,2,174,2],[175,2,176,2],[177,2,178,2],[179,2,180,2],[181,2,182,2],[183,2,184,2],[185,2,186,2],[187,2,188,2],[189,2,190,2],[191,2,192,2],[193,2,194,2],[195,2,196,2],[197,2,198,2],[199,2,200,2],[201,2,202,2],[203,2,204,2],[205,2,206,2],[207,2,208,2],[209,2,210,2],[211,2,212,2],[231,2,232,2],[241,2,242,2],[243,2,244,2],[233,2,234,2],[235,2,236,2],[237,2,238,2],[239,2,240,2],[213,2,214,2],[215,2,216,2],[217,2,218,2],[219,2,220,2],[221,2,222,2],[223,2,224,2],[225,2,226,2],[227,2,228,2],[229,2,230,2]]}
[null,null,{"$f":"محافظة","v":"محافظة /  القليوبيه"},null,null,null,"جدول إجمالي الفصول",null,null,null,null,null,null,null,null,"اللجنة   / محمدي"]
[null,null,{"$f":"ادارة","v":"إدارة    /  غ شبرا "},null,null,null,{"$f":"\"للعام الدراسـي / \" &العام","v":"للعام الدراسـي / 2021 / 2022 م"},null,null,null,null,null,null,null,null,"المشرف / قصي"]
[null,null,{"$f":"مدرسة","v":"مدرسـة /  الزعيم الخالد"},null,null,null,{"$f":"\"بداية العمل به /  \" & TEXT(تاريخ_البداية,\"yyyy/mm/dd\")&\" م\"","v":"بداية العمل به /  2021/08/01 م"},null,null,null,null,null,null,null,null,"المدير    / ناصر"]
[null,null,"الايام","السبت",null,null,null,null,null,null,null,null,null,null,null,"الاحد",null,null,null,null,null,null,null,null,null,null,null,"الاثنين",null,null,null,null,null,null,null,null,null,null,null,"الثلاثاء",null,null,null,null,null,null,null,null,null,null,null,"الاربعاء",null,null,null,null,null,null,null,null,null,null,null,"الخميس"]
[null,null,"الحصص الفصول ","الأولى","الثانيه","الثالثه","الرابعه","الخامسه","السادسه","السابعه","الثامنه","التاسعه","العاشرة","الحادية عشره","الثانيه عشرة","الأولى","الثانيه","الثالثه","الرابعه","الخامسه","السادسه","السابعه","الثامنه","التاسعه","العاشرة","الحادية عشره","الثانيه عشرة","الأولى","الثانيه","الثالثه","الرابعه","الخامسه","السادسه","السابعه","الثامنه","التاسعه","العاشرة","الحادية عشره","الثانيه عشرة","الأولى","الثانيه","الثالثه","الرابعه","الخامسه","السادسه","السابعه","الثامنه","التاسعه","العاشرة","الحادية عشره","الثانيه عشرة","الأولى","الثانيه","الثالثه","الرابعه","الخامسه","السادسه","السابعه","الثامنه","التاسعه","العاشرة","الحادية عشره","الثانيه عشرة","الأولى","الثانيه","الثالثه","الرابعه","الخامسه","السادسه","السابعه","الثامنه","التاسعه","العاشرة","الحادية عشره","الثانيه عشرة","الأولى","الثانيه","الثالثه","الرابعه","الخامسه","السادسه","السابعه","الثامنه","التاسعه","العاشرة","الحادية عشره","الثانيه عشرة"]
[null,null,"الأول أ","علوم","هندسة","انجليزي","هندسة","فرنسي","هندسة","هندسة",null,null,null,null,null,"عربي","انجليزي","علوم","فيزياء","كيمياء","هندسة","فرنسي",null,null,null,null,null,"فرنسي","علوم","كيمياء","علوم","عربي","انجليزي","عربي",null,null,null,null,null,"علوم","فيزياء","عربي","علوم","عربي","هندسة","فلسفه",null,null,null,null,null,"كيمياء","انجليزي","فرنسي","انجليزي","علوم","علوم","هندسة",null,null,null,null,null,"فرنسي","هندسة","عربي","هندسة","انجليزي","انجليزي","فيزياء"]
[null,null,null,"أحمد","محمدي","عبد السميع","عبد الله ","زيد علي","كامل","عبد الله ",null,null,null,null,null,"علي","عبد السميع","أحمد","اكسيلجي","ابو اسامة","كامل","زيد علي",null,null,null,null,null,"زيد علي","أحمد","ابو اسامة","أحمد","مصطفى","عبد السميع","علي",null,null,null,null,null,"أحمد","اكسيلجي","علي","أحمد","علي","كامل","كامل",null,null,null,null,null,"ابو اسامة","عبد السميع","زيد علي","علي","أحمد","أحمد","محمدي",null,null,null,null,null,"زيد علي","كامل","مصطفى","كامل","عبد السميع","علي","اكسيلجي"]
[null,null,"الأول ب","عربي","هندسة","هندسة","فيزياء","هندسة","فيزياء","عربي",null,null,null,null,null,"علوم","رياضيات","هندسة","علوم","فيزياء","عربي","هندسة",null,null,null,null,null,"فلسفه","هندسة","فيزياء","انجليزي","فيزياء","هندسة","كيمياء",null,null,null,null,null,"فيزياء","علوم","فرنسي","عربي","هندسة","فيزياء","كيمياء",null,null,null,null,null,"فيزياء","فرنسي","كيمياء","رياضيات","كيمياء","هندسة","فيزياء",null,null,null,null,null,"هندسة","علوم","كيمياء","هندسة","فيزياء","انجليزي","هندسة"]
[null,null,null,"علي","كامل","محمدي","اكسيلجي","محمدي","اكسيلجي","مصطفى",null,null,null,null,null,"أحمد","ابو اسامة","محمدي","أحمد","اكسيلجي","مصطفى","محمدي",null,null,null,null,null,"كامل","كامل","اكسيلجي","عبد السميع","اكسيلجي","محمدي","ابو اسامة",null,null,null,null,null,"اكسيلجي","أحمد","زيد علي","مصطفى","محمدي","اكسيلجي","ابو اسامة",null,null,null,null,null,"اكسيلجي","زيد علي","عبد الله ","ابو اسامة","ابو اسامة","كامل","اكسيلجي",null,null,null,null,null,"محمدي","أحمد","ابو اسامة","محمدي","اكسيلجي","عبد السميع","عبد الله "]
[null,null,"الأول ج","انجليزي","انجليزي","عربي","فرنسي","كيمياء","عربي","فلسفه",null,null,null,null,null,"هندسة","عربي","كيمياء","عربي","فلسفه","فرنسي","انجليزي",null,null,null,null,null,"انجليزي","هندسة","عربي","فيزياء","فرنسي","رياضيات","عربي",null,null,null,null,null,"انجليزي","رياضيات","انجليزي","رياضيات","فيزياء","انجليزي","هندسة",null,null,null,null,null,"هندسة","انجليزي","انجليزي","هندسة","علوم","فرنسي","عربي",null,null,null,null,null,"علوم","فيزياء","فلسفه","علوم","عربي","عربي","هندسة"]
[null,null,null,"عبد السميع","عبد السميع","مصطفى","زيد علي","ابو اسامة","مصطفى","كامل",null,null,null,null,null,"محمدي","مصطفى","ابو اسامة","مصطفى","كامل","زيد علي","عبد السميع",null,null,null,null,null,"عبد السميع","محمدي","مصطفى","اكسيلجي","زيد علي","ابو اسامة","مصطفى",null,null,null,null,null,"عبد السميع","ابو اسامة","عبد السميع","ابو اسامة","اكسيلجي","علي","محمدي",null,null,null,null,null,"عبد الله ","علي","عبد السميع","كامل","عبد الله ","زيد علي","علي",null,null,null,null,null,"أحمد","اكسيلجي","كامل","أحمد","علي","مصطفى","محمدي"]
[null,null,"الأول د","فيزياء","علوم","فيزياء","عربي","علوم","هندسة","فرنسي",null,null,null,null,null,"فرنسي","انجليزي","عربي","فرنسي","عربي","فيزياء","عربي",null,null,null,null,null,"عربي","عربي","فلسفه","عربي","فلسفه","علوم","انجليزي",null,null,null,null,null,"هندسة","هندسة","علوم","فرنسي","انجليزي","عربي","عربي",null,null,null,null,null,"فلسفه","علوم","عربي","هندسة","فلسفه","عربي","عربي",null,null,null,null,null,"عربي","فرنسي","فيزياء","انجليزي","هندسة","فرنسي","انجليزي"]
[null,null,null,"اكسيلجي","عبد الله ","اكسيلجي","مصطفى","عبد الله ","محمدي","زيد علي",null,null,null,null,null,"زيد علي","علي","علي","زيد علي","مصطفى","اكسيلجي","مصطفى",null,null,null,null,null,"مصطفى","مصطفى","كامل","مصطفى","كامل","أحمد","عبد السميع",null,null,null,null,null,"عبد الله ","محمدي","أحمد","زيد علي","عبد السميع","مصطفى","علي",null,null,null,null,null,"كامل","عبد الله ","علي","محمدي","كامل","مصطفى","مصطفى",null,null,null,null,null,"علي","زيد علي","اكسيلجي","علي","محمدي","زيد علي","عبد السميع"]
[null,null,"الثاني ا","فرنسي","رياضيات","فرنسي","علوم","عربي","انجليزي","كيمياء",null,null,null,null,null,"هندسة","علوم","فيزياء","هندسة","فرنسي","كيمياء","كيمياء",null,null,null,null,null,"هندسة","فرنسي","عربي","رياضيات","علوم","كيمياء","علوم",null,null,null,null,null,"فلسفه","عربي","كيمياء","فيزياء","علوم","انجليزي","انجليزي",null,null,null,null,null,"فرنسي","هندسة","كيمياء","فيزياء","فيزياء","فيزياء","كيمياء",null,null,null,null,null,"انجليزي","انجليزي","فرنسي","هندسة","عربي","فيزياء","كيمياء"]
[null,null,null,"زيد علي","ابو اسامة","زيد علي","أحمد","علي","علي","ابو اسامة",null,null,null,null,null,"عبد الله ","عبد الله ","اكسيلجي","محمدي","زيد علي","عبد الله ","ابو اسامة",null,null,null,null,null,"محمدي","زيد علي","علي","ابو اسامة","عبد الله ","عبد الله ","أحمد",null,null,null,null,null,"كامل","مصطفى","ابو اسامة","اكسيلجي","عبد الله ","عبد السميع","عبد السميع",null,null,null,null,null,"زيد علي","محمدي","ابو اسامة","اكسيلجي","اكسيلجي","اكسيلجي","ابو اسامة",null,null,null,null,null,"عبد السميع","علي","زيد علي","عبد الله ","مصطفى","اكسيلجي","ابو اسامة"]
[null,null,"الثاني ب","هندسة","انجليزي","عربي","هندسة","انجليزي","فرنسي","علوم",null,null,null,null,null,"انجليزي","علوم","انجليزي","انجليزي","هندسة","انجليزي","فلسفه",null,null,null,null,null,"عربي","فيزياء","علوم","هندسة","عربي","هندسة","فرنسي",null,null,null,null,null,"عربي","فرنسي","هندسة","انجليزي","فرنسي","علوم","هندسة",null,null,null,null,null,"هندسة","فيزياء","هندسة","انجليزي","هندسة","كيمياء","علوم",null,null,null,null,null,"فيزياء","علوم","عربي","فيزياء","علوم","كيمياء","فلسفه"]
[null,null,null,"عبد الله ","علي","علي","محمدي","عبد السميع","زيد علي","أحمد",null,null,null,null,null,"عبد السميع","أحمد","عبد السميع","علي","محمدي","عبد السميع","كامل",null,null,null,null,null,"علي","اكسيلجي","أحمد","كامل","علي","كامل","زيد علي",null,null,null,null,null,"علي","زيد علي","محمدي","عبد السميع","زيد علي","أحمد","عبد الله ",null,null,null,null,null,"محمدي","اكسيلجي","محمدي","عبد السميع","محمدي","عبد الله ","أحمد",null,null,null,null,null,"اكسيلجي","عبد الله ","علي","اكسيلجي","أحمد","عبد الله ","كامل"]
[null,null,"الثاني ج","عربي","فيزياء","علوم","انجليزي","عربي","رياضيات","عربي",null,null,null,null,null,"فلسفه","هندسة","فرنسي","رياضيات","علوم","رياضيات","عربي",null,null,null,null,null,"هندسة","انجليزي","انجليزي","هندسة","كيمياء","انجليزي","هندسة",null,null,null,null,null,"فرنسي","علوم","كيمياء","هندسة","عربي","فرنسي","فرنسي",null,null,null,null,null,"عربي","علوم","علوم","فرنسي","عربي","رياضيات","فرنسي",null,null,null,null,null,"عربي","انجليزي","كيمياء","رياضيات","فلسفه","هندسة","عربي"]
[null,null,null,"مصطفى","اكسيلجي","أحمد","علي","مصطفى","ابو اسامة","علي",null,null,null,null,null,"كامل","محمدي","زيد علي","ابو اسامة","أحمد","ابو اسامة","علي",null,null,null,null,null,"عبد الله ","عبد السميع","عبد السميع","عبد الله ","ابو اسامة","علي","محمدي",null,null,null,null,null,"زيد علي","عبد الله ","عبد الله ","عبد الله ","مصطفى","زيد علي","زيد علي",null,null,null,null,null,"مصطفى","أحمد","أحمد","زيد علي","علي","ابو اسامة","زيد علي",null,null,null,null,null,"مصطفى","عبد السميع","عبد الله ","ابو اسامة","كامل","محمدي","مصطفى"]
[null,null,"الثاني د","هندسة","فرنسي","فلسفه","هندسة","فلسفه","كيمياء","هندسة",null,null,null,null,null,"فيزياء","فرنسي","عربي","هندسة","علوم","هندسة","علوم",null,null,null,null,null,"كيمياء","انجليزي","فرنسي","هندسة","علوم","فيزياء","فلسفه",null,null,null,null,null,"عربي","انجليزي","عربي","انجليزي","كيمياء","هندسة","عربي",null,null,null,null,null,"عربي","رياضيات","فلسفه","هندسة","فرنسي","هندسة","هندسة",null,null,null,null,null,"فلسفه","عربي","علوم","عربي","كيمياء","رياضيات","علوم"]
[null,null,null,"محمدي","زيد علي","كامل","كامل","كامل","عبد الله ","محمدي",null,null,null,null,null,"اكسيلجي","زيد علي","مصطفى","كامل","عبد الله ","محمدي","أحمد",null,null,null,null,null,"ابو اسامة","علي","زيد علي","محمدي","أحمد","اكسيلجي","كامل",null,null,null,null,null,"مصطفى","علي","مصطفى","علي","ابو اسامة","محمدي","مصطفى",null,null,null,null,null,"علي","ابو اسامة","كامل","عبد الله ","زيد علي","محمدي","عبد الله ",null,null,null,null,null,"كامل","مصطفى","أحمد","مصطفى","ابو اسامة","ابو اسامة","أحمد"]
[null,null,"الثالث ا","كيمياء","علوم","كيمياء","رياضيات","فيزياء","علوم","فيزياء",null,null,null,null,null,"عربي","هندسة","فلسفه","انجليزي","انجليزي","انجليزي","هندسة",null,null,null,null,null,"فيزياء","رياضيات","هندسة","فرنسي","هندسة","فرنسي","هندسة",null,null,null,null,null,"كيمياء","انجليزي","فلسفه","هندسة","فلسفه","كيمياء","علوم",null,null,null,null,null,"علوم","هندسة","فيزياء","علوم","عربي","انجليزي","فلسفه",null,null,null,null,null,"كيمياء","هندسة","هندسة","فرنسي","علوم","علوم","عربي"]
[null,null,null,"ابو اسامة","أحمد","عبد الله ","ابو اسامة","اكسيلجي","أحمد","اكسيلجي",null,null,null,null,null,"مصطفى","كامل","كامل","عبد السميع","عبد السميع","علي","عبد الله ",null,null,null,null,null,"اكسيلجي","ابو اسامة","محمدي","زيد علي","محمدي","زيد علي","عبد الله ",null,null,null,null,null,"ابو اسامة","عبد السميع","كامل","كامل","كامل","عبد الله ","أحمد",null,null,null,null,null,"أحمد","كامل","اكسيلجي","أحمد","مصطفى","علي","كامل",null,null,null,null,null,"ابو اسامة","محمدي","محمدي","زيد علي","عبد الله ","أحمد","علي"]
[null,null,"الثالث ب","فلسفه","عربي","كيمياء","انجليزي","علوم","انجليزي","انجليزي",null,null,null,null,null,"كيمياء","فيزياء","كيمياء","هندسة","عربي","علوم","فيزياء",null,null,null,null,null,"علوم","علوم","كيمياء","انجليزي","انجليزي","عربي","فيزياء",null,null,null,null,null,"هندسة","هندسة","فيزياء","هندسة","علوم","رياضيات","فيزياء",null,null,null,null,null,"انجليزي","عربي","عربي","عربي","انجليزي","انجليزي","انجليزي",null,null,null,null,null,"هندسة","رياضيات","انجليزي","انجليزي","فرنسي","هندسة","فرنسي"]
[null,null,null,"كامل","مصطفى","ابو اسامة","عبد السميع","أحمد","عبد السميع","عبد السميع",null,null,null,null,null,"ابو اسامة","اكسيلجي","عبد الله ","عبد الله ","علي","أحمد","اكسيلجي",null,null,null,null,null,"أحمد","عبد الله ","عبد الله ","علي","عبد السميع","مصطفى","اكسيلجي",null,null,null,null,null,"محمدي","كامل","اكسيلجي","محمدي","أحمد","ابو اسامة","اكسيلجي",null,null,null,null,null,"عبد السميع","مصطفى","مصطفى","مصطفى","عبد السميع","عبد السميع","عبد السميع",null,null,null,null,null,"عبد الله ","ابو اسامة","عبد السميع","عبد السميع","زيد علي","كامل","زيد علي"]
[null,null,"الثالث ج"]
[]
[null,null,"الثالث د"]
[]
[null,null,"الرابع ا"]
[]
[null,null,"الرابع ب"]
[]
[null,null,"الرابع ج"]
[]
[null,null,"الرابع د"]
[]
[null,null,"الخامس ا "]
[]
[null,null,"الخامس ب"]
[]
[null,null,"الخامس ج"]
[]
[null,null,"الخامس د"]
[]
[null,null,"السادس ا"]
[]
[null,null,"السادس ب"]
[]
[null,null,"السادس ج"]
[]
[null,null,"السادس د"]
[]
[]
[]
[]
[]
[]
[]
[]
[]
[]
[]
[]
[]
[]
[]
[]
[]
[]
[]
[]
[]
[]
[]
[]
[]
[]
[]
[]
[]
[]
[]
[]
[]
[]
[]
[]
[]
[]
[]
[]
[]
[]
[]
[]
[]
[]
[]
[]
[]
[]
[]
[]
[]
[]
[]
[]
[]
[]
[]
[]
[]
[]
[]
[]
[]
[]
[]
[]
[]
[]
[]
[]
[]
[]
[]
[]
[]
[]
[]
[]
[]
[]
[]
[]
[]
[]
[]
[]
[]
[]
[]
[]
[]
[]
[]
[]
[]
[]
[]
[]
[]
[]
[]
[]
[]
[]
[]
[]
[]
[]
[]
[]
[]
[]
[]
[]
[]
[]
[]
[]
[]
[]
[]
[]
[]
[]
[]
[]
[]
[]
[]
[]
[]
[]
[]
[]
[]
[]
[]
[]
[]
[]
[]
[]
[]
[]
[]
[]
[]
[]
[]
[]
[]
[]
[]
[]
[]
[]
[]
[]
[]
[]
[]
[]
[]
[]
[]
[]
[]
[]
[]
[]
[]
[]
[]
[]
[]
[]
[]
[]
[]
[]
[]
[]
[]
[]
[]
[]
[]
[]
[]
[]
[]
[]
[null,null,"لجنة الجدول / 1                          2                        3"]
[]
[null,null,{"$f":"\"إجمالي عدد المدرسين / \" & COUNTA(معلمون)","v":"إجمالي عدد المدرسين / 24"},null,null,null,{"$f":"\"إجمالي عدد الفصول / \" & COUNTA(الفصول)","v":"إجمالي عدد الفصول / 24"},null,null,null,null,null,null,null,null,{"$f":"\"إجمالي عدد المواد  / \" & COUNTA(المواد)","v":"إجمالي عدد المواد  / 10"}]

{"sheet":"جدول اجمالي المدرسين","index":6,"n_rows":249,"n_cols":87,"rows_kept":249,"cut":false,"hidden":false,"merged":[[3,51,3,62],[3,63,3,74],[3,75,3,86],[3,3,3,14],[3,15,3,26],[3,27,3,38],[3,39,3,50],[5,2,6,2],[7,2,8,2],[9,2,10,2],[11,2,12,2],[13,2,14,2],[15,2,16,2],[17,2,18,2],[19,2,20,2],[21,2,22,2],[23,2,24,2],[25,2,26,2],[27,2,28,2],[29,2,30,2],[31,2,32,2],[33,2,34,2],[35,2,36,2],[37,2,38,2],[39,2,40,2],[41,2,42,2],[43,2,44,2],[45,2,46,2],[47,2,48,2],[49,2,50,2],[51,2,52,2],[53,2,54,2],[55,2,56,2],[57,2,58,2],[59,2,60,2],[61,2,62,2],[63,2,64,2],[65,2,66,2],[67,2,68,2],[69,2,70,2],[71,2,72,2],[73,2,74,2],[75,2,76,2],[77,2,78,2],[79,2,80,2],[81,2,82,2],[83,2,84,2],[85,2,86,2],[87,2,88,2],[89,2,90,2],[91,2,92,2],[93,2,94,2],[95,2,96,2],[97,2,98,2],[99,2,100,2],[101,2,102,2],[103,2,104,2],[105,2,106,2],[107,2,108,2],[109,2,110,2],[111,2,112,2],[113,2,114,2],[115,2,116,2],[117,2,118,2],[119,2,120,2],[121,2,122,2],[123,2,124,2],[125,2,126,2],[127,2,128,2],[129,2,130,2],[131,2,132,2],[133,2,134,2],[135,2,136,2],[137,2,138,2],[139,2,140,2],[141,2,142,2],[143,2,144,2],[145,2,146,2],[147,2,148,2],[149,2,150,2],[151,2,152,2],[153,2,154,2],[155,2,156,2],[157,2,158,2],[159,2,160,2],[161,2,162,2],[163,2,164,2],[165,2,166,2],[167,2,168,2],[169,2,170,2],[171,2,172,2],[173,2,174,2],[175,2,176,2],[177,2,178,2],[179,2,180,2],[181,2,182,2],[183,2,184,2],[185,2,186,2],[187,2,188,2],[189,2,190,2],[191,2,192,2],[193,2,194,2],[195,2,196,2],[197,2,198,2],[199,2,200,2],[201,2,202,2],[203,2,204,2],[205,2,206,2],[207,2,208,2],[209,2,210,2],[211,2,212,2],[213,2,214,2],[215,2,216,2],[217,2,218,2],[219,2,220,2],[221,2,222,2],[223,2,224,2],[243,2,244,2],[225,2,226,2],[227,2,228,2],[229,2,230,2],[231,2,232,2],[233,2,234,2],[235,2,236,2],[237,2,238,2],[239,2,240,2],[241,2,242,2]]}
[null,null,{"$f":"محافظة","v":"محافظة /  القليوبيه"},null,null,null,"جدول اجمالي المدرسين",null,null,null,null,null,null,null,null,"اللجنة   / محمدي"]
[null,null,{"$f":"ادارة","v":"إدارة    /  غ شبرا "},null,null,null,{"$f":"\"للعام الدراسـي / \" &العام","v":"للعام الدراسـي / 2021 / 2022 م"},null,null,null,null,null,null,null,null,"المشرف / قصي"]
[null,null,{"$f":"مدرسة","v":"مدرسـة /  الزعيم الخالد"},null,null,null,{"$f":"\"بداية العمل به /  \" & TEXT(تاريخ_البداية,\"yyyy/mm/dd\")&\" م\"","v":"بداية العمل به /  2021/08/01 م"},null,null,null,null,null,null,null,null,"المدير    / ناصر"]
[null,null,"الايام","السبت",null,null,null,null,null,null,null,null,null,null,null,"الاحد",null,null,null,null,null,null,null,null,null,null,null,"الاثنين",null,null,null,null,null,null,null,null,null,null,null,"الثلاثاء",null,null,null,null,null,null,null,null,null,null,null,"الاربعاء",null,null,null,null,null,null,null,null,null,null,null,"الخميس"]
[null,null,"الحصص المدرسين ","الأولى","الثانيه","الثالثه","الرابعه","الخامسه","السادسه","السابعه","الثامنه","التاسعه","العاشرة","الحادية عشره","الثانيه عشرة","الأولى","الثانيه","الثالثه","الرابعه","الخامسه","السادسه","السابعه","الثامنه","التاسعه","العاشرة","الحادية عشره","الثانيه عشرة","الأولى","الثانيه","الثالثه","الرابعه","الخامسه","السادسه","السابعه","الثامنه","التاسعه","العاشرة","الحادية عشره","الثانيه عشرة","الأولى","الثانيه","الثالثه","الرابعه","الخامسه","السادسه","السابعه","الثامنه","التاسعه","العاشرة","الحادية عشره","الثانيه عشرة","الأولى","الثانيه","الثالثه","الرابعه","الخامسه","السادسه","السابعه","الثامنه","التاسعه","العاشرة","الحادية عشره","الثانيه عشرة","الأولى","الثانيه","الثالثه","الرابعه","الخامسه","السادسه","السابعه","الثامنه","التاسعه","العاشرة","الحادية عشره","الثانيه عشرة","الأولى","الثانيه","الثالثه","الرابعه","الخامسه","السادسه","السابعه","الثامنه","التاسعه","العاشرة","الحادية عشره","الثانيه عشرة"]
[null,null,"عبد الله ","هندسة","علوم","كيمياء","هندسة","علوم","كيمياء","هندسة",null,null,null,null,null,"هندسة","علوم","كيمياء","هندسة","علوم","كيمياء","هندسة",null,null,null,null,null,"هندسة","علوم","كيمياء","هندسة","علوم","كيمياء","هندسة",null,null,null,null,null,"هندسة","علوم","كيمياء","هندسة","علوم","كيمياء","هندسة",null,null,null,null,null,"هندسة","علوم","كيمياء","هندسة","علوم","كيمياء","هندسة",null,null,null,null,null,"هندسة","علوم","كيمياء","هندسة","علوم","كيمياء","هندسة"]
[null,null,null,"الأول ب","التاسع أ","الثامن أ","1-10","الرابع أ","الأول أ","1-10",null,null,null,null,null,"الثامن أ","الثامن ب","السادس ب","السادس ب","التاسع أ","التاسع أ","الأول أ",null,null,null,null,null,"الثامن ب","الرابع ب","الرابع ب","التاسع أ","التاسع أ","الرابع أ","الأول ب",null,null,null,null,null,"الثامن ب","التاسع أ","الثامن ب","الأول أ","الثامن أ","الرابع أ","الرابع أ",null,null,null,null,null,"الرابع أ","الرابع أ","الثامن أ","الثامن ب","الثامن ب","السادس أ","الرابع ب",null,null,null,null,null,"الثامن ب","الثامن ب","الأول أ","التاسع أ","الرابع ب","السادس أ","الثامن ب"]
[null,null,"علي","عربي","انجليزي","عربي","انجليزي","عربي","انجليزي","عربي",null,null,null,null,null,"عربي","انجليزي","عربي","انجليزي","عربي","انجليزي","عربي",null,null,null,null,null,"عربي","انجليزي","عربي","انجليزي","عربي","انجليزي","عربي",null,null,null,null,null,"عربي","انجليزي","عربي","انجليزي","عربي","انجليزي","عربي",null,null,null,null,null,"عربي","انجليزي","عربي","انجليزي","عربي","انجليزي","عربي",null,null,null,null,null,"عربي","انجليزي","عربي","انجليزي","عربي","انجليزي","عربي"]
[null,null,null,"الأول أ","الأول ب","السادس أ","الأول ب","السادس ب","السادس أ","السادس أ",null,null,null,null,null,"الأول ب","الرابع ب","الأول ب","الثامن ب","الرابع ب","الأول أ","الرابع ب",null,null,null,null,null,"الثامن أ","السادس أ","السادس أ","الثامن ب","الرابع ب","التاسع أ","1-10",null,null,null,null,null,"الأول أ","الثامن ب","1-10","السادس أ","1-10","السادس ب","الثامن ب",null,null,null,null,null,"التاسع أ","السادس أ","السادس ب","الأول أ","السادس أ","الثامن ب","السادس ب",null,null,null,null,null,"السادس أ","1-10","الرابع ب","الأول أ","الرابع أ","الثامن ب","الأول أ"]
[null,null,"أحمد","علوم","علوم","علوم","علوم","علوم","علوم","علوم",null,null,null,null,null,"علوم","علوم","علوم","علوم","علوم","علوم","علوم",null,null,null,null,null,"علوم","علوم","علوم","علوم","علوم","علوم","علوم",null,null,null,null,null,"علوم","علوم","علوم","علوم","علوم","علوم","علوم",null,null,null,null,null,"علوم","علوم","علوم","علوم","علوم","علوم","علوم",null,null,null,null,null,"علوم","علوم","علوم","علوم","علوم","علوم","علوم"]
[null,null,null,"السادس ب","1-10","الثامن ب","السادس أ","الثامن أ","الثامن ب","الثامن ب",null,null,null,null,null,"السادس أ","الثامن أ","الأول أ","الأول ب","الرابع أ","الثامن ب","الأول ب",null,null,null,null,null,"السادس ب","الرابع أ","الأول ب","الأول أ","الأول ب","1-10","الرابع ب",null,null,null,null,null,"الرابع ب","السادس ب","الرابع ب","1-10","السادس ب","الثامن ب","الرابع ب",null,null,null,null,null,"الثامن أ","الثامن ب","الثامن ب","السادس ب","الرابع ب","الثامن أ","1-10",null,null,null,null,null,"الأول أ","الثامن أ","الثامن ب","الرابع أ","الثامن أ","السادس ب","السادس ب"]
[null,null,"محمدي","هندسة","هندسة","هندسة","هندسة","هندسة","هندسة","هندسة",null,null,null,null,null,"هندسة","هندسة","هندسة","هندسة","هندسة","هندسة","هندسة",null,null,null,null,null,"هندسة","هندسة","هندسة","هندسة","هندسة","هندسة","هندسة",null,null,null,null,null,"هندسة","هندسة","هندسة","هندسة","هندسة","هندسة","هندسة",null,null,null,null,null,"هندسة","هندسة","هندسة","هندسة","هندسة","هندسة","هندسة",null,null,null,null,null,"هندسة","هندسة","هندسة","هندسة","هندسة","هندسة","هندسة"]
[null,null,null,"الثامن ب","السادس ب","1-10","التاسع أ","الرابع ب","الرابع أ","الأول أ",null,null,null,null,null,"السادس ب","التاسع أ","التاسع أ","الأول أ","الثامن ب","السادس ب","الثامن ب",null,null,null,null,null,"الأول أ","الثامن ب","الرابع أ","1-10","السادس ب","الأول أ","الثامن أ",null,null,null,null,null,"السادس أ","الرابع أ","الثامن أ","الثامن أ","السادس أ","الأول ب","السادس ب",null,null,null,null,null,"الأول أ","السادس ب","الرابع ب","الأول ب","1-10","الأول ب","الثامن أ",null,null,null,null,null,"السادس ب","الرابع أ","الأول ب","السادس ب","السادس ب","الرابع ب","الأول ب"]
[null,null,"عبد السميع","انجليزي","انجليزي","انجليزي","انجليزي","انجليزي","انجليزي","انجليزي",null,null,null,null,null,"انجليزي","انجليزي","انجليزي","انجليزي","انجليزي","انجليزي","انجليزي",null,null,null,null,null,"انجليزي","انجليزي","انجليزي","انجليزي","انجليزي","انجليزي","انجليزي",null,null,null,null,null,"انجليزي","انجليزي","انجليزي","انجليزي","انجليزي","انجليزي","انجليزي",null,null,null,null,null,"انجليزي","انجليزي","انجليزي","انجليزي","انجليزي","انجليزي","انجليزي",null,null,null,null,null,"انجليزي","انجليزي","انجليزي","انجليزي","انجليزي","انجليزي","انجليزي"]
[null,null,null,"1-10","الثامن أ","الرابع ب","الرابع أ","الأول ب","الثامن أ","الرابع ب",null,null,null,null,null,"الرابع ب","الأول أ","الثامن ب","الرابع أ","الأول ب","السادس أ","الثامن أ",null,null,null,null,null,"الرابع ب","التاسع أ","الثامن ب","الأول ب","السادس أ","السادس ب","الأول أ",null,null,null,null,null,"السادس ب","الأول أ","الأول أ","الرابع ب","الأول أ","الرابع ب","التاسع أ",null,null,null,null,null,"الثامن ب","الأول أ","السادس أ","السادس أ","السادس ب","التاسع أ","التاسع أ",null,null,null,null,null,"الرابع أ","الرابع ب","التاسع أ","الثامن أ","السادس أ","التاسع أ","الرابع ب"]
[null,null,"ابو اسامة","كيمياء","رياضيات","كيمياء","رياضيات","كيمياء","رياضيات","كيمياء",null,null,null,null,null,"كيمياء","رياضيات","كيمياء","رياضيات","كيمياء","رياضيات","كيمياء",null,null,null,null,null,"كيمياء","رياضيات","كيمياء","رياضيات","كيمياء","رياضيات","كيمياء",null,null,null,null,null,"كيمياء","رياضيات","كيمياء","رياضيات","كيمياء","رياضيات","كيمياء",null,null,null,null,null,"كيمياء","رياضيات","كيمياء","رياضيات","كيمياء","رياضيات","كيمياء",null,null,null,null,null,"كيمياء","رياضيات","كيمياء","رياضيات","كيمياء","رياضيات","كيمياء"]
[null,null,null,"التاسع أ","الرابع ب","الرابع أ","الرابع ب","1-10","1-10","السادس ب",null,null,null,null,null,"التاسع أ","السادس أ","السادس أ","الثامن أ","الأول أ","الرابع ب","الرابع أ",null,null,null,null,null,"الأول ب","الأول أ","السادس ب","الرابع أ","الثامن أ","السادس أ","الثامن ب",null,null,null,null,null,"التاسع أ","الأول ب","السادس أ","السادس ب","الأول ب","الثامن أ","الأول أ",null,null,null,null,null,"1-10","1-10","الرابع أ","التاسع أ","الأول أ","السادس ب","الأول ب",null,null,null,null,null,"الثامن أ","السادس ب","السادس أ","الأول ب","الأول أ","الثامن أ","1-10"]
[null,null,"اكسيلجي","فيزياء","فيزياء","فيزياء","فيزياء","فيزياء","فيزياء","فيزياء",null,null,null,null,null,"فيزياء","فيزياء","فيزياء","فيزياء","فيزياء","فيزياء","فيزياء",null,null,null,null,null,"فيزياء","فيزياء","فيزياء","فيزياء","فيزياء","فيزياء","فيزياء",null,null,null,null,null,"فيزياء","فيزياء","فيزياء","فيزياء","فيزياء","فيزياء","فيزياء",null,null,null,null,null,"فيزياء","فيزياء","فيزياء","فيزياء","فيزياء","فيزياء","فيزياء",null,null,null,null,null,"فيزياء","فيزياء","فيزياء","فيزياء","فيزياء","فيزياء","فيزياء"]
[null,null,null,"السادس أ","الأول أ","التاسع أ","الثامن ب","السادس أ","التاسع أ","الثامن أ",null,null,null,null,null,"الأول أ","1-10","1-10","السادس أ","الثامن أ","الأول ب","السادس أ",null,null,null,null,null,"التاسع أ","الأول ب","التاسع أ","السادس ب","الرابع أ","الرابع ب","السادس ب",null,null,null,null,null,"الأول ب","1-10","السادس ب","الثامن ب","التاسع أ","الأول أ","السادس أ",null,null,null,null,null,"الأول ب","التاسع أ","الأول ب","الرابع أ","الرابع أ","الأول أ","السادس أ",null,null,null,null,null,"1-10","الأول أ","الثامن أ","السادس أ","الثامن ب","الأول ب","الرابع أ"]
[null,null,"كامل","فلسفه","هندسة","فلسفه","هندسة","فلسفه","هندسة","فلسفه",null,null,null,null,null,"فلسفه","هندسة","فلسفه","هندسة","فلسفه","هندسة","فلسفه",null,null,null,null,null,"فلسفه","هندسة","فلسفه","هندسة","فلسفه","هندسة","فلسفه",null,null,null,null,null,"فلسفه","هندسة","فلسفه","هندسة","فلسفه","هندسة","فلسفه",null,null,null,null,null,"فلسفه","هندسة","فلسفه","هندسة","فلسفه","هندسة","فلسفه",null,null,null,null,null,"فلسفه","هندسة","فلسفه","هندسة","فلسفه","هندسة","فلسفه"]
[null,null,null,"الرابع ب","السادس أ","الأول أ","الثامن أ","التاسع أ","الرابع ب","الأول ب",null,null,null,null,null,"الرابع أ","السادس ب","الثامن أ","الرابع ب","السادس أ","الرابع أ","التاسع أ",null,null,null,null,null,"1-10","1-10","الثامن أ","الرابع ب","الأول أ","الثامن ب","السادس أ",null,null,null,null,null,"1-10","الرابع ب","الرابع أ","التاسع أ","الرابع أ","التاسع أ","الأول ب",null,null,null,null,null,"السادس ب","الرابع ب","التاسع أ","الثامن أ","الثامن أ","الرابع ب","الأول أ",null,null,null,null,null,"الأول ب","التاسع أ","السادس ب","الرابع ب","الأول ب","الرابع أ","التاسع أ"]
[null,null,"مصطفى","عربي","عربي","عربي","عربي","عربي","عربي","عربي",null,null,null,null,null,"عربي","عربي","عربي","عربي","عربي","عربي","عربي",null,null,null,null,null,"عربي","عربي","عربي","عربي","عربي","عربي","عربي",null,null,null,null,null,"عربي","عربي","عربي","عربي","عربي","عربي","عربي",null,null,null,null,null,"عربي","عربي","عربي","عربي","عربي","عربي","عربي",null,null,null,null,null,"عربي","عربي","عربي","عربي","عربي","عربي","عربي"]
[null,null,null,"الرابع أ","الرابع أ","السادس ب","الأول أ","الأول أ","الأول ب","الرابع أ",null,null,null,null,null,"الثامن ب","الأول ب","الرابع أ","التاسع أ","1-10","الثامن أ","1-10",null,null,null,null,null,"السادس أ","الثامن أ","الأول أ","الثامن أ","الثامن ب","الأول ب","الرابع أ",null,null,null,null,null,"الثامن أ","السادس أ","التاسع أ","الرابع أ","الرابع ب","1-10","الثامن أ",null,null,null,null,null,"الرابع ب","الثامن أ","الأول أ","الرابع ب","التاسع أ","1-10","الثامن ب",null,null,null,null,null,"التاسع أ","الأول ب","الرابع أ","1-10","التاسع أ","1-10","الثامن أ"]
[null,null,"زيد علي","فرنسي","فرنسي","فرنسي","فرنسي","فرنسي","فرنسي","فرنسي",null,null,null,null,null,"فرنسي","فرنسي","فرنسي","فرنسي","فرنسي","فرنسي","فرنسي",null,null,null,null,null,"فرنسي","فرنسي","فرنسي","فرنسي","فرنسي","فرنسي","فرنسي",null,null,null,null,null,"فرنسي","فرنسي","فرنسي","فرنسي","فرنسي","فرنسي","فرنسي",null,null,null,null,null,"فرنسي","فرنسي","فرنسي","فرنسي","فرنسي","فرنسي","فرنسي",null,null,null,null,null,"فرنسي","فرنسي","فرنسي","فرنسي","فرنسي","فرنسي","فرنسي"]
[null,null,null,"الثامن أ","الثامن ب","الأول ب","السادس ب","الثامن ب","السادس ب","التاسع أ",null,null,null,null,null,"1-10","الرابع أ","الرابع ب","1-10","السادس ب","1-10","السادس ب",null,null,null,null,null,"الرابع أ","السادس ب","1-10","السادس أ","1-10","الثامن أ","التاسع أ",null,null,null,null,null,"الرابع أ","الثامن أ","الأول ب","الأول ب","الثامن ب","السادس أ","1-10",null,null,null,null,null,"السادس أ","الأول ب","1-10","1-10","الأول ب","الرابع أ","الرابع أ",null,null,null,null,null,"الرابع ب","السادس أ","1-10","الثامن ب","1-10","الأول أ","السادس أ"]
[]
[]
[]
[]
[]
[]
[]
[]
[]
[]
[]
[]
[]
[]
[]
[]
[]
[]
[]
[]
[]
[]
[]
[]
[]
[]
[]
[]
[]
[]
[]
[]
[]
[]
[]
[]
[]
[]
[]
[]
[]
[]
[]
[]
[]
[]
[]
[]
[]
[]
[]
[]
[]
[]
[]
[]
[]
[]
[]
[]
[]
[]
[]
[]
[]
[]
[]
[]
[]
[]
[]
[]
[]
[]
[]
[]
[]
[]
[]
[]
[]
[]
[]
[]
[]
[]
[]
[]
[]
[]
[]
[]
[]
[]
[]
[]
[]
[]
[]
[]
[]
[]
[]
[]
[]
[]
[]
[]
[]
[]
[]
[]
[]
[]
[]
[]
[]
[]
[]
[]
[]
[]
[]
[]
[]
[]
[]
[]
[]
[]
[]
[]
[]
[]
[]
[]
[]
[]
[]
[]
[]
[]
[]
[]
[]
[]
[]
[]
[]
[]
[]
[]
[]
[]
[]
[]
[]
[]
[]
[]
[]
[]
[]
[]
[]
[]
[]
[]
[]
[]
[]
[]
[]
[]
[]
[]
[]
[]
[]
[]
[]
[]
[]
[]
[]
[]
[]
[]
[]
[]
[]
[]
[]
[]
[]
[]
[]
[]
[]
[]
[]
[]
[]
[]
[]
[]
[]
[]
[]
[]
[]
[]
[]
[]
[]
[]
[]
[]
[]
[]
[]
[null,null,"لجنة الجدول / 1                          2                        3"]
[]
[null,null,{"$f":"\"إجمالي عدد المدرسين / \" & COUNTA(معلمون)","v":"إجمالي عدد المدرسين / 24"},null,null,null,{"$f":"\"إجمالي عدد الفصول / \" & COUNTA(الفصول)","v":"إجمالي عدد الفصول / 24"},null,null,null,null,null,null,null,null,{"$f":"\"إجمالي عدد المواد  / \" & COUNTA(المواد)","v":"إجمالي عدد المواد  / 10"}]

{"sheet":"الجميع","index":7,"n_rows":19,"n_cols":256,"rows_kept":19,"cut":false,"hidden":false,"merged":[[3,207,3,218],[3,219,3,230],[3,135,3,146],[3,147,3,158],[3,159,3,170],[3,171,3,182],[3,183,3,194],[3,195,3,206],[3,111,3,122],[3,123,3,134],[11,2,12,2],[13,2,14,2],[3,3,3,14],[3,15,3,26],[3,75,3,86],[5,2,6,2],[15,2,16,2],[17,2,18,2],[3,87,3,98],[3,99,3,110],[7,2,8,2],[9,2,10,2],[3,27,3,38],[3,39,3,50],[3,51,3,62],[3,63,3,74]]}
[null,null,{"$f":"محافظة","v":"محافظة /  القليوبيه"},null,null,"جدول إجمالي الفصول",null,null,null,null,null,null,null,null,null,{"$f":"COLUMN()","v":16},null,null,null,null,null,null,null,null,null,null,null,null,null,null,null,null,null,null,null,null,null,null,null,null,null,null,null,null,null,null,null,null,null,null,null,null,null,null,null,null,null,null,null,null,null,null,null,null,null,null,null,null,null,null,null,null,null,null,null,null,null,null,null,null,null,null,null,null,null,null,null,null,null,null,null,null,null,null,null,null,null,null,null,null,null,null,null,null,null,null,null,null,null,null,null,null,null,null,null,null,null,null,null,null,null,null,null,null,null,null,null,null,null,null,null,null,null,null,null,null,null,null,null,null,null,null,null,null,null,null,null,null,null,null,null,null,null,null,null,null,null,null,null,null,null,null,null,null,null,null,null,null,null,null,null,null,null,null,null,null,null,null,null,null,null,null,null,null,null,null,null,null,null,null,null,null,null,null,null,null,null,null,null,null,null,null,null,null,null,null,null,null,null,null,null,null,null,null,null,null,null,null,null,null,null,null,null,null,null,null,null,null,null,null,null,null,null,null,null,null,null,null,null,null,null,null,null,null,null,null,null,null,null,null,null,null,null,null,null,"جدول اجمالي المدرسين"]
[null,null,{"$f":"ادارة","v":"إدارة    /  غ شبرا "},null,null,null,null,null,null,null,null,null,null,null,null,null,null,null,null,null,null,null,null,null,null,null,null,null,null,null,null,null,null,null,null,null,null,null,null,null,null,null,null,null,null,null,null,null,null,null,null,null,null,null,null,null,null,null,null,null,null,null,null,null,null,null,null,null,null,null,null,null,null,null,null,null,null,null,null,null,null,null,null,null,null,null,null,null,null,null,null,null,null,null,null,null,null,null,null,null,null,null,null,null,null,null,null,null,null,null,null,null,null,null,null,null,null,null,null,null,null,null,null,null,null,null,null,null,null,null,null,null,null,null,null,null,null,null,null,null,null,null,null,null,null,null,null,null,null,null,null,null,null,null,null,null,null,null,null,null,null,null,null,null,null,null,null,null,null,null,null,null,null,null,null,null,null,null,null,null,null,null,null,null,null,null,null,null,null,null,null,null,null,null,null,null,null,null,null,null,null,null,null,null,null,null,null,null,null,null,null,null,null,null,null,null,null,null,null,null,null,null,null,null,null,null,null,null,null,null,null,null,null,null,null,null,null,null,null,null,null,null,null,null,null,null,null,null,null,null,null,null,null,null,null,"جدول إجمالي الفصول"]
[null,null,{"$f":"مدرسة","v":"مدرسـة /  الزعيم الخالد"},{"$f":"COLUMN()","v":4},null,null,null,null,null,null,null,null,null,null,null,{"$f":"COLUMN()","v":16},null,null,null,null,null,null,null,null,null,null,null,{"$f":"COLUMN()","v":28},null,null,null,null,null,null,null,null,null,null,null,{"$f":"COLUMN()","v":40}]
[null,null,"الايام",{"$f":"INDIRECT(\"'\"&F1&\"'!C\"&INT(COLUMN()/6)+6)","v":"الأول أ"},null,null,null,null,null,null,null,null,null,null,null,{"$f":"INDIRECT(\"'\"&F1&\"'!C\"&INT(COLUMN()/6)+6)","v":"الأول ب"},null,null,null,null,null,null,null,null,null,null,null,{"$f":"INDIRECT(\"'\"&F1&\"'!C\"&INT(COLUMN()/6)+6)","v":"الأول ج"},null,null,null,null,null,null,null,null,null,null,null,{"$f":"INDIRECT(\"'\"&F1&\"'!C\"&INT(COLUMN()/6)+6)","v":"الأول د"},null,null,null,null,null,null,null,null,null,null,null,{"$f":"INDIRECT(\"'\"&F1&\"'!C\"&INT(COLUMN()/6)+6)","v":"الثاني ا"},null,null,null,null,null,null,null,null,null,null,null,{"$f":"INDIRECT(\"'\"&$F1&\"'!C\"&INT(COLUMN()/6)+6)","v":"الثاني ب"},null,null,null,null,null,null,null,null,null,null,null,{"$f":"INDIRECT(\"'\"&$F1&\"'!C\"&INT(COLUMN()/6)+6)","v":"الثاني ج"},null,null,null,null,null,null,null,null,null,null,null,{"$f":"INDIRECT(\"'\"&$F1&\"'!C\"&INT(COLUMN()/6)+6)","v":"الثاني د"},null,null,null,null,null,null,null,null,null,null,null,{"$f":"INDIRECT(\"'\"&$F1&\"'!C\"&INT(COLUMN()/6)+6)","v":"الثالث ا"},null,null,null,null,null,null,null,null,null,null,null,{"$f":"INDIRECT(\"'\"&$F1&\"'!C\"&INT(COLUMN()/6)+6)","v":"الثالث ب"},null,null,null,null,null,null,null,null,null,null,null,{"$f":"INDIRECT(\"'\"&$F1&\"'!C\"&INT(COLUMN()/6)+6)","v":"الثالث ج"},null,null,null,null,null,null,null,null,null,null,null,{"$f":"INDIRECT(\"'\"&$F1&\"'!C\"&INT(COLUMN()/6)+6)","v":"الثالث د"},null,null,null,null,null,null,null,null,null,null,null,{"$f":"INDIRECT(\"'\"&$F1&\"'!C\"&INT(COLUMN()/6)+6)","v":"الرابع ا"},null,null,null,null,null,null,null,null,null,null,null,{"$f":"INDIRECT(\"'\"&$F1&\"'!C\"&INT(COLUMN()/6)+6)","v":"الرابع ب"},null,null,null,null,null,null,null,null,null,null,null,{"$f":"INDIRECT(\"'\"&$F1&\"'!C\"&INT(COLUMN()/6)+6)","v":"الرابع ج"},null,null,null,null,null,null,null,null,null,null,null,{"$f":"INDIRECT(\"'\"&$F1&\"'!C\"&INT(COLUMN()/6)+6)","v":"الرابع د"},null,null,null,null,null,null,null,null,null,null,null,{"$f":"INDIRECT(\"'\"&$F1&\"'!C\"&INT(COLUMN()/6)+6)","v":"الخامس ا "},null,null,null,null,null,null,null,null,null,null,null,{"$f":"INDIRECT(\"'\"&$F1&\"'!C\"&INT(COLUMN()/6)+6)","v":"الخامس ب"},null,null,null,null,null,null,null,null,null,null,null,{"$f":"INDIRECT(\"'\"&$F1&\"'!C\"&INT(COLUMN()/6)+6)","v":"الخامس ج"}]
[null,null,"الحصص المدرسين ","الأولى","الثانيه","الثالثه","الرابعه","الخامسه","السادسه","السابعه","الثامنه","التاسعه","العاشرة","الحادية عشره","الثانيه عشرة","الأولى","الثانيه","الثالثه","الرابعه","الخامسه","السادسه","السابعه","الثامنه","التاسعه","العاشرة","الحادية عشره","الثانيه عشرة","الأولى","الثانيه","الثالثه","الرابعه","الخامسه","السادسه","السابعه","الثامنه","التاسعه","العاشرة","الحادية عشره","الثانيه عشرة","الأولى","الثانيه","الثالثه","الرابعه","الخامسه","السادسه","السابعه","الثامنه","التاسعه","العاشرة","الحادية عشره","الثانيه عشرة","الأولى","الثانيه","الثالثه","الرابعه","الخامسه","السادسه","السابعه","الثامنه","التاسعه","العاشرة","الحادية عشره","الثانيه عشرة","الأولى","الثانيه","الثالثه","الرابعه","الخامسه","السادسه","السابعه","الثامنه","التاسعه","العاشرة","الحادية عشره","الثانيه عشرة","الأولى","الثانيه","الثالثه","الرابعه","الخامسه","السادسه","السابعه","الثامنه","التاسعه","العاشرة","الحادية عشره","الثانيه عشرة","الأولى","الثانيه","الثالثه","الرابعه","الخامسه","السادسه","السابعه","الثامنه","التاسعه","العاشرة","الحادية عشره","الثانيه عشرة","الأولى","الثانيه","الثالثه","الرابعه","الخامسه","السادسه","السابعه","الثامنه","التاسعه","العاشرة","الحادية عشره","الثانيه عشرة","الأولى","الثانيه","الثالثه","الرابعه","الخامسه","السادسه","السابعه","الثامنه","التاسعه","العاشرة","الحادية عشره","الثانيه عشرة","الأولى","الثانيه","الثالثه","الرابعه","الخامسه","السادسه","السابعه","الثامنه","التاسعه","العاشرة","الحادية عشره","الثانيه عشرة","الأولى","الثانيه","الثالثه","الرابعه","الخامسه","السادسه","السابعه","الثامنه","التاسعه","العاشرة","الحادية عشره","الثانيه عشرة","الأولى","الثانيه","الثالثه","الرابعه","الخامسه","السادسه","السابعه","الثامنه","التاسعه","العاشرة","الحادية عشره","الثانيه عشرة","الأولى","الثانيه","الثالثه","الرابعه","الخامسه","السادسه","السابعه","الثامنه","التاسعه","العاشرة","الحادية عشره","الثانيه عشرة","الأولى","الثانيه","الثالثه","الرابعه","الخامسه","السادسه","السابعه","الثامنه","التاسعه","العاشرة","الحادية عشره","الثانيه عشرة","الأولى","الثانيه","الثالثه","الرابعه","الخامسه","السادسه","السابعه","الثامنه","التاسعه","العاشرة","الحادية عشره","الثانيه عشرة","الأولى","الثانيه","الثالثه","الرابعه","الخامسه","السادسه","السابعه","الثامنه","التاسعه","العاشرة","الحادية عشره","الثانيه عشرة","الأولى","الثانيه","الثالثه","الرابعه","الخامسه","السادسه","السابعه","الثامنه","التاسعه","العاشرة","الحادية عشره","الثانيه عشرة","الأولى","الثانيه","الثالثه","الرابعه","الخامسه","السادسه","السابعه","الثامنه","التاسعه","العاشرة","الحادية عشره","الثانيه عشرة"]
[null,null,{"$f":"الرئيسه!D6","v":"السبت"},{"$f":"INDIRECT(ADDRESS(6,COLUMN(),3,1,$F$1))","v":"علوم"},"هندسة","انجليزي","هندسة","فرنسي","هندسة","هندسة",0,0,0,0,0,{"$f":"INDIRECT(ADDRESS(8,COLUMN()-12,3,1,$F$1))","v":"عربي"},{"$f":"INDIRECT(ADDRESS(8,COLUMN()-12,3,1,$F$1))","v":"هندسة"},"هندسة","فيزياء","هندسة","فيزياء","عربي",0,0,0,0,0,{"$f":"INDIRECT(ADDRESS(10,COLUMN()-24,3,1,$F$1))","v":"انجليزي"},{"$f":"INDIRECT(ADDRESS(10,COLUMN()-24,3,1,$F$1))","v":"انجليزي"},"عربي","فرنسي","كيمياء","عربي","فلسفه",0,0,0,0,0,{"$f":"INDIRECT(ADDRESS(12,COLUMN()-36,3,1,$F$1))","v":"فيزياء"},{"$f":"INDIRECT(ADDRESS(12,COLUMN()-36,3,1,$F$1))","v":"علوم"},"فيزياء","عربي","علوم","هندسة","فرنسي",0,0,0,0,0,{"$f":"INDIRECT(ADDRESS(14,COLUMN()-48,3,1,$F$1))","v":"فرنسي"},{"$f":"INDIRECT(ADDRESS(14,COLUMN()-48,3,1,$F$1))","v":"رياضيات"},"فرنسي","علوم","عربي","انجليزي","كيمياء",0,0,0,0,0,{"$f":"INDIRECT(ADDRESS(16,COLUMN()-60,3,1,$F$1))","v":"هندسة"},{"$f":"INDIRECT(ADDRESS(16,COLUMN()-60,3,1,$F$1))","v":"انجليزي"},"عربي","هندسة","انجليزي","فرنسي","علوم",0,0,0,0,0,{"$f":"INDIRECT(ADDRESS(18,COLUMN()-72,3,1,$F$1))","v":"عربي"},{"$f":"INDIRECT(ADDRESS(18,COLUMN()-72,3,1,$F$1))","v":"فيزياء"},"علوم","انجليزي","عربي","رياضيات","عربي",0,0,0,0,0]
[null,null,null,{"$f":"INDIRECT(ADDRESS(7,COLUMN(),3,1,$F$1))","v":"أحمد"},"محمدي","عبد السميع","عبد الله ","زيد علي","كامل","عبد الله ",0,0,0,0,0,{"$f":"INDIRECT(ADDRESS(9,COLUMN()-12,3,1,$F$1))","v":"علي"},{"$f":"INDIRECT(ADDRESS(9,COLUMN()-12,3,1,$F$1))","v":"كامل"},"محمدي","اكسيلجي","محمدي","اكسيلجي","مصطفى",0,0,0,0,0,{"$f":"INDIRECT(ADDRESS(11,COLUMN()-24,3,1,$F$1))","v":"عبد السميع"},{"$f":"INDIRECT(ADDRESS(11,COLUMN()-24,3,1,$F$1))","v":"عبد السميع"},"مصطفى","زيد علي","ابو اسامة","مصطفى","كامل",0,0,0,0,0,{"$f":"INDIRECT(ADDRESS(13,COLUMN()-36,3,1,$F$1))","v":"اكسيلجي"},{"$f":"INDIRECT(ADDRESS(13,COLUMN()-36,3,1,$F$1))","v":"عبد الله "},"اكسيلجي","مصطفى","عبد الله ","محمدي","زيد علي",0,0,0,0,0,{"$f":"INDIRECT(ADDRESS(15,COLUMN()-48,3,1,$F$1))","v":"زيد علي"},{"$f":"INDIRECT(ADDRESS(15,COLUMN()-48,3,1,$F$1))","v":"ابو اسامة"},"زيد علي","أحمد","علي","علي","ابو اسامة",0,0,0,0,0,{"$f":"INDIRECT(ADDRESS(17,COLUMN()-60,3,1,$F$1))","v":"عبد الله "},{"$f":"INDIRECT(ADDRESS(17,COLUMN()-60,3,1,$F$1))","v":"علي"},"علي","محمدي","عبد السميع","زيد علي","أحمد",0,0,0,0,0,{"$f":"INDIRECT(ADDRESS(19,COLUMN()-72,3,1,$F$1))","v":"مصطفى"},{"$f":"INDIRECT(ADDRESS(19,COLUMN()-72,3,1,$F$1))","v":"اكسيلجي"},"أحمد","علي","مصطفى","ابو اسامة","علي",0,0,0,0,0]
[null,null,{"$f":"الرئيسه!D7","v":"الاحد"},{"$f":"INDIRECT(ADDRESS(6,COLUMN()+12,3,1,$F$1))","v":"عربي"},"انجليزي","علوم","فيزياء","كيمياء","هندسة","فرنسي",0,0,0,0,0,{"$f":"INDIRECT(ADDRESS(8,COLUMN(),3,1,$F$1))","v":"علوم"},"رياضيات","هندسة","علوم","فيزياء","عربي","هندسة",0,0,0,0,0,{"$f":"INDIRECT(ADDRESS(10,COLUMN()-12,3,1,$F$1))","v":"هندسة"},{"$f":"INDIRECT(ADDRESS(10,COLUMN()-12,3,1,$F$1))","v":"عربي"},"كيمياء","عربي","فلسفه","فرنسي","انجليزي",0,0,0,0,0,{"$f":"INDIRECT(ADDRESS(12,COLUMN()-24,3,1,$F$1))","v":"فرنسي"},{"$f":"INDIRECT(ADDRESS(12,COLUMN()-24,3,1,$F$1))","v":"انجليزي"},"عربي","فرنسي","عربي","فيزياء","عربي",0,0,0,0,0,{"$f":"INDIRECT(ADDRESS(14,COLUMN()-36,3,1,$F$1))","v":"هندسة"},{"$f":"INDIRECT(ADDRESS(14,COLUMN()-36,3,1,$F$1))","v":"علوم"},"فيزياء","هندسة","فرنسي","كيمياء","كيمياء",0,0,0,0,0,{"$f":"INDIRECT(ADDRESS(16,COLUMN()-48,3,1,$F$1))","v":"انجليزي"},{"$f":"INDIRECT(ADDRESS(16,COLUMN()-48,3,1,$F$1))","v":"علوم"},"انجليزي","انجليزي","هندسة","انجليزي","فلسفه",0,0,0,0,0,{"$f":"INDIRECT(ADDRESS(18,COLUMN()-60,3,1,$F$1))","v":"فلسفه"},{"$f":"INDIRECT(ADDRESS(18,COLUMN()-60,3,1,$F$1))","v":"هندسة"},"فرنسي","رياضيات","علوم","رياضيات","عربي",0,0,0,0,0]
[null,null,null,{"$f":"INDIRECT(ADDRESS(7,COLUMN()+12,3,1,$F$1))","v":"علي"},"عبد السميع","أحمد","اكسيلجي","ابو اسامة","كامل","زيد علي",0,0,0,0,0,{"$f":"INDIRECT(ADDRESS(9,COLUMN(),3,1,$F$1))","v":"أحمد"},"ابو اسامة","محمدي","أحمد","اكسيلجي","مصطفى","محمدي",0,0,0,0,0,{"$f":"INDIRECT(ADDRESS(11,COLUMN()-12,3,1,$F$1))","v":"محمدي"},{"$f":"INDIRECT(ADDRESS(11,COLUMN()-12,3,1,$F$1))","v":"مصطفى"},"ابو اسامة","مصطفى","كامل","زيد علي","عبد السميع",0,0,0,0,0,{"$f":"INDIRECT(ADDRESS(13,COLUMN()-24,3,1,$F$1))","v":"زيد علي"},{"$f":"INDIRECT(ADDRESS(13,COLUMN()-24,3,1,$F$1))","v":"علي"},"علي","زيد علي","مصطفى","اكسيلجي","مصطفى",0,0,0,0,0,{"$f":"INDIRECT(ADDRESS(15,COLUMN()-36,3,1,$F$1))","v":"عبد الله "},{"$f":"INDIRECT(ADDRESS(15,COLUMN()-36,3,1,$F$1))","v":"عبد الله "},"اكسيلجي","محمدي","زيد علي","عبد الله ","ابو اسامة",0,0,0,0,0,{"$f":"INDIRECT(ADDRESS(17,COLUMN()-48,3,1,$F$1))","v":"عبد السميع"},{"$f":"INDIRECT(ADDRESS(17,COLUMN()-48,3,1,$F$1))","v":"أحمد"},"عبد السميع","علي","محمدي","عبد السميع","كامل",0,0,0,0,0,{"$f":"INDIRECT(ADDRESS(19,COLUMN()-60,3,1,$F$1))","v":"كامل"},{"$f":"INDIRECT(ADDRESS(19,COLUMN()-60,3,1,$F$1))","v":"محمدي"},"زيد علي","ابو اسامة","أحمد","ابو اسامة","علي",0,0,0,0,0]
[null,null,{"$f":"الرئيسه!D8","v":"الاثنين"},{"$f":"INDIRECT(ADDRESS(6,COLUMN()+24,3,1,$F$1))","v":"فرنسي"},"علوم","كيمياء","علوم","عربي","انجليزي","عربي",0,0,0,0,0,{"$f":"INDIRECT(ADDRESS(8,COLUMN()+12,3,1,$F$1))","v":"فلسفه"},"هندسة","فيزياء","انجليزي","فيزياء","هندسة","كيمياء",0,0,0,0,0,{"$f":"INDIRECT(ADDRESS(10,COLUMN(),3,1,$F$1))","v":"انجليزي"},{"$f":"INDIRECT(ADDRESS(10,COLUMN(),3,1,$F$1))","v":"هندسة"},"عربي","فيزياء","فرنسي","رياضيات","عربي",0,0,0,0,0,{"$f":"INDIRECT(ADDRESS(12,COLUMN()-12,3,1,$F$1))","v":"عربي"},{"$f":"INDIRECT(ADDRESS(12,COLUMN()-12,3,1,$F$1))","v":"عربي"},"فلسفه","عربي","فلسفه","علوم","انجليزي",0,0,0,0,0,{"$f":"INDIRECT(ADDRESS(14,COLUMN()-24,3,1,$F$1))","v":"هندسة"},{"$f":"INDIRECT(ADDRESS(14,COLUMN()-24,3,1,$F$1))","v":"فرنسي"},"عربي","رياضيات","علوم","كيمياء","علوم",0,0,0,0,0,{"$f":"INDIRECT(ADDRESS(16,COLUMN()-36,3,1,$F$1))","v":"عربي"},{"$f":"INDIRECT(ADDRESS(16,COLUMN()-36,3,1,$F$1))","v":"فيزياء"},"علوم","هندسة","عربي","هندسة","فرنسي",0,0,0,0,0,{"$f":"INDIRECT(ADDRESS(18,COLUMN()-48,3,1,$F$1))","v":"هندسة"},{"$f":"INDIRECT(ADDRESS(18,COLUMN()-48,3,1,$F$1))","v":"انجليزي"},"انجليزي","هندسة","كيمياء","انجليزي","هندسة",0,0,0,0,0]
[null,null,null,{"$f":"INDIRECT(ADDRESS(7,COLUMN()+24,3,1,$F$1))","v":"زيد علي"},"أحمد","ابو اسامة","أحمد","مصطفى","عبد السميع","علي",0,0,0,0,0,{"$f":"INDIRECT(ADDRESS(9,COLUMN()+12,3,1,$F$1))","v":"كامل"},"كامل","اكسيلجي","عبد السميع","اكسيلجي","محمدي","ابو اسامة",0,0,0,0,0,{"$f":"INDIRECT(ADDRESS(11,COLUMN(),3,1,$F$1))","v":"عبد السميع"},{"$f":"INDIRECT(ADDRESS(11,COLUMN(),3,1,$F$1))","v":"محمدي"},"مصطفى","اكسيلجي","زيد علي","ابو اسامة","مصطفى",0,0,0,0,0,{"$f":"INDIRECT(ADDRESS(13,COLUMN()-12,3,1,$F$1))","v":"مصطفى"},{"$f":"INDIRECT(ADDRESS(13,COLUMN()-12,3,1,$F$1))","v":"مصطفى"},"كامل","مصطفى","كامل","أحمد","عبد السميع",0,0,0,0,0,{"$f":"INDIRECT(ADDRESS(15,COLUMN()-24,3,1,$F$1))","v":"محمدي"},{"$f":"INDIRECT(ADDRESS(15,COLUMN()-24,3,1,$F$1))","v":"زيد علي"},"علي","ابو اسامة","عبد الله ","عبد الله ","أحمد",0,0,0,0,0,{"$f":"INDIRECT(ADDRESS(17,COLUMN()-36,3,1,$F$1))","v":"علي"},{"$f":"INDIRECT(ADDRESS(17,COLUMN()-36,3,1,$F$1))","v":"اكسيلجي"},"أحمد","كامل","علي","كامل","زيد علي",0,0,0,0,0,{"$f":"INDIRECT(ADDRESS(19,COLUMN()-48,3,1,$F$1))","v":"عبد الله "},{"$f":"INDIRECT(ADDRESS(19,COLUMN()-48,3,1,$F$1))","v":"عبد السميع"},"عبد السميع","عبد الله ","ابو اسامة","علي","محمدي",0,0,0,0,0]
[null,null,{"$f":"الرئيسه!D9","v":"الثلاثاء"},{"$f":"INDIRECT(ADDRESS(6,COLUMN()+36,3,1,$F$1))","v":"علوم"},"فيزياء","عربي","علوم","عربي","هندسة","فلسفه",0,0,0,0,0,{"$f":"INDIRECT(ADDRESS(8,COLUMN()+24,3,1,$F$1))","v":"فيزياء"},"علوم","فرنسي","عربي","هندسة","فيزياء","كيمياء",0,0,0,0,0,{"$f":"INDIRECT(ADDRESS(10,COLUMN()+12,3,1,$F$1))","v":"انجليزي"},{"$f":"INDIRECT(ADDRESS(10,COLUMN()+12,3,1,$F$1))","v":"رياضيات"},"انجليزي","رياضيات","فيزياء","انجليزي","هندسة",0,0,0,0,0,{"$f":"INDIRECT(ADDRESS(12,COLUMN(),3,1,$F$1))","v":"هندسة"},{"$f":"INDIRECT(ADDRESS(12,COLUMN(),3,1,$F$1))","v":"هندسة"},"علوم","فرنسي","انجليزي","عربي","عربي",0,0,0,0,0,{"$f":"INDIRECT(ADDRESS(14,COLUMN()-12,3,1,$F$1))","v":"فلسفه"},{"$f":"INDIRECT(ADDRESS(14,COLUMN()-12,3,1,$F$1))","v":"عربي"},"كيمياء","فيزياء","علوم","انجليزي","انجليزي",0,0,0,0,0,{"$f":"INDIRECT(ADDRESS(16,COLUMN()-24,3,1,$F$1))","v":"عربي"},{"$f":"INDIRECT(ADDRESS(16,COLUMN()-24,3,1,$F$1))","v":"فرنسي"},"هندسة","انجليزي","فرنسي","علوم","هندسة",0,0,0,0,0,{"$f":"INDIRECT(ADDRESS(18,COLUMN()-36,3,1,$F$1))","v":"فرنسي"},{"$f":"INDIRECT(ADDRESS(18,COLUMN()-36,3,1,$F$1))","v":"علوم"},"كيمياء","هندسة","عربي","فرنسي","فرنسي",0,0,0,0,0]
[null,null,null,{"$f":"INDIRECT(ADDRESS(7,COLUMN()+36,3,1,$F$1))","v":"أحمد"},"اكسيلجي","علي","أحمد","علي","كامل","كامل",0,0,0,0,0,{"$f":"INDIRECT(ADDRESS(9,COLUMN()+24,3,1,$F$1))","v":"اكسيلجي"},"أحمد","زيد علي","مصطفى","محمدي","اكسيلجي","ابو اسامة",0,0,0,0,0,{"$f":"INDIRECT(ADDRESS(11,COLUMN()+12,3,1,$F$1))","v":"عبد السميع"},{"$f":"INDIRECT(ADDRESS(11,COLUMN()+12,3,1,$F$1))","v":"ابو اسامة"},"عبد السميع","ابو اسامة","اكسيلجي","علي","محمدي",0,0,0,0,0,{"$f":"INDIRECT(ADDRESS(13,COLUMN(),3,1,$F$1))","v":"عبد الله "},{"$f":"INDIRECT(ADDRESS(13,COLUMN(),3,1,$F$1))","v":"محمدي"},"أحمد","زيد علي","عبد السميع","مصطفى","علي",0,0,0,0,0,{"$f":"INDIRECT(ADDRESS(15,COLUMN()-12,3,1,$F$1))","v":"كامل"},{"$f":"INDIRECT(ADDRESS(15,COLUMN()-12,3,1,$F$1))","v":"مصطفى"},"ابو اسامة","اكسيلجي","عبد الله ","عبد السميع","عبد السميع",0,0,0,0,0,{"$f":"INDIRECT(ADDRESS(17,COLUMN()-24,3,1,$F$1))","v":"علي"},{"$f":"INDIRECT(ADDRESS(17,COLUMN()-24,3,1,$F$1))","v":"زيد علي"},"محمدي","عبد السميع","زيد علي","أحمد","عبد الله ",0,0,0,0,0,{"$f":"INDIRECT(ADDRESS(19,COLUMN()-36,3,1,$F$1))","v":"زيد علي"},{"$f":"INDIRECT(ADDRESS(19,COLUMN()-36,3,1,$F$1))","v":"عبد الله "},"عبد الله ","عبد الله ","مصطفى","زيد علي","زيد علي",0,0,0,0,0]
[null,null,{"$f":"الرئيسه!D10","v":"الاربعاء"},{"$f":"INDIRECT(ADDRESS(6,COLUMN()+48,3,1,$F$1))","v":"كيمياء"},"انجليزي","فرنسي","انجليزي","علوم","علوم","هندسة",0,0,0,0,0,{"$f":"INDIRECT(ADDRESS(8,COLUMN()+36,3,1,$F$1))","v":"فيزياء"},"فرنسي","كيمياء","رياضيات","كيمياء","هندسة","فيزياء",0,0,0,0,0,{"$f":"INDIRECT(ADDRESS(10,COLUMN()+24,3,1,$F$1))","v":"هندسة"},{"$f":"INDIRECT(ADDRESS(10,COLUMN()+24,3,1,$F$1))","v":"انجليزي"},"انجليزي","هندسة","علوم","فرنسي","عربي",0,0,0,0,0,{"$f":"INDIRECT(ADDRESS(12,COLUMN()+12,3,1,$F$1))","v":"فلسفه"},{"$f":"INDIRECT(ADDRESS(12,COLUMN()+12,3,1,$F$1))","v":"علوم"},"عربي","هندسة","فلسفه","عربي","عربي",0,0,0,0,0,{"$f":"INDIRECT(ADDRESS(14,COLUMN(),3,1,$F$1))","v":"فرنسي"},{"$f":"INDIRECT(ADDRESS(14,COLUMN(),3,1,$F$1))","v":"هندسة"},"كيمياء","فيزياء","فيزياء","فيزياء","كيمياء",0,0,0,0,0,{"$f":"INDIRECT(ADDRESS(16,COLUMN()-12,3,1,$F$1))","v":"هندسة"},{"$f":"INDIRECT(ADDRESS(16,COLUMN()-12,3,1,$F$1))","v":"فيزياء"},"هندسة","انجليزي","هندسة","كيمياء","علوم",0,0,0,0,0,{"$f":"INDIRECT(ADDRESS(18,COLUMN()-24,3,1,$F$1))","v":"عربي"},{"$f":"INDIRECT(ADDRESS(18,COLUMN()-24,3,1,$F$1))","v":"علوم"},"علوم","فرنسي","عربي","رياضيات","فرنسي",0,0,0,0,0]
[null,null,null,{"$f":"INDIRECT(ADDRESS(7,COLUMN()+48,3,1,$F$1))","v":"ابو اسامة"},"عبد السميع","زيد علي","علي","أحمد","أحمد","محمدي",0,0,0,0,0,{"$f":"INDIRECT(ADDRESS(9,COLUMN()+36,3,1,$F$1))","v":"اكسيلجي"},"زيد علي","عبد الله ","ابو اسامة","ابو اسامة","كامل","اكسيلجي",0,0,0,0,0,{"$f":"INDIRECT(ADDRESS(11,COLUMN()+24,3,1,$F$1))","v":"عبد الله "},{"$f":"INDIRECT(ADDRESS(11,COLUMN()+24,3,1,$F$1))","v":"علي"},"عبد السميع","كامل","عبد الله ","زيد علي","علي",0,0,0,0,0,{"$f":"INDIRECT(ADDRESS(13,COLUMN()+12,3,1,$F$1))","v":"كامل"},{"$f":"INDIRECT(ADDRESS(13,COLUMN()+12,3,1,$F$1))","v":"عبد الله "},"علي","محمدي","كامل","مصطفى","مصطفى",0,0,0,0,0,{"$f":"INDIRECT(ADDRESS(15,COLUMN(),3,1,$F$1))","v":"زيد علي"},{"$f":"INDIRECT(ADDRESS(15,COLUMN(),3,1,$F$1))","v":"محمدي"},"ابو اسامة","اكسيلجي","اكسيلجي","اكسيلجي","ابو اسامة",0,0,0,0,0,{"$f":"INDIRECT(ADDRESS(17,COLUMN()-12,3,1,$F$1))","v":"محمدي"},{"$f":"INDIRECT(ADDRESS(17,COLUMN()-12,3,1,$F$1))","v":"اكسيلجي"},"محمدي","عبد السميع","محمدي","عبد الله ","أحمد",0,0,0,0,0,{"$f":"INDIRECT(ADDRESS(19,COLUMN()-24,3,1,$F$1))","v":"مصطفى"},{"$f":"INDIRECT(ADDRESS(19,COLUMN()-24,3,1,$F$1))","v":"أحمد"},"أحمد","زيد علي","علي","ابو اسامة","زيد علي",0,0,0,0,0]
[null,null,{"$f":"الرئيسه!D11","v":"الخميس"},{"$f":"INDIRECT(ADDRESS(6,COLUMN()+60,3,1,$F$1))","v":"فرنسي"},"هندسة","عربي","هندسة","انجليزي","انجليزي","فيزياء",0,0,0,0,0,{"$f":"INDIRECT(ADDRESS(8,COLUMN()+48,3,1,$F$1))","v":"هندسة"},"علوم","كيمياء","هندسة","فيزياء","انجليزي","هندسة",0,0,0,0,0,{"$f":"INDIRECT(ADDRESS(10,COLUMN()+36,3,1,$F$1))","v":"علوم"},{"$f":"INDIRECT(ADDRESS(10,COLUMN()+36,3,1,$F$1))","v":"فيزياء"},"فلسفه","علوم","عربي","عربي","هندسة",0,0,0,0,0,{"$f":"INDIRECT(ADDRESS(12,COLUMN()+24,3,1,$F$1))","v":"عربي"},{"$f":"INDIRECT(ADDRESS(12,COLUMN()+24,3,1,$F$1))","v":"فرنسي"},"فيزياء","انجليزي","هندسة","فرنسي","انجليزي",0,0,0,0,0,{"$f":"INDIRECT(ADDRESS(14,COLUMN()+12,3,1,$F$1))","v":"انجليزي"},{"$f":"INDIRECT(ADDRESS(14,COLUMN()+12,3,1,$F$1))","v":"انجليزي"},"فرنسي","هندسة","عربي","فيزياء","كيمياء",0,0,0,0,0,{"$f":"INDIRECT(ADDRESS(16,COLUMN(),3,1,$F$1))","v":"فيزياء"},{"$f":"INDIRECT(ADDRESS(16,COLUMN(),3,1,$F$1))","v":"علوم"},"عربي","فيزياء","علوم","كيمياء","فلسفه",0,0,0,0,0,{"$f":"INDIRECT(ADDRESS(18,COLUMN()-12,3,1,$F$1))","v":"عربي"},{"$f":"INDIRECT(ADDRESS(18,COLUMN()-12,3,1,$F$1))","v":"انجليزي"},"كيمياء","رياضيات","فلسفه","هندسة","عربي",0,0,0,0,0]
[null,null,null,{"$f":"INDIRECT(ADDRESS(7,COLUMN()+60,3,1,$F$1))","v":"زيد علي"},"كامل","مصطفى","كامل","عبد السميع","علي","اكسيلجي",0,0,0,0,0,{"$f":"INDIRECT(ADDRESS(9,COLUMN()+48,3,1,$F$1))","v":"محمدي"},"أحمد","ابو اسامة","محمدي","اكسيلجي","عبد السميع","عبد الله ",0,0,0,0,0,{"$f":"INDIRECT(ADDRESS(11,COLUMN()+36,3,1,$F$1))","v":"أحمد"},{"$f":"INDIRECT(ADDRESS(11,COLUMN()+36,3,1,$F$1))","v":"اكسيلجي"},"كامل","أحمد","علي","مصطفى","محمدي",0,0,0,0,0,{"$f":"INDIRECT(ADDRESS(13,COLUMN()+24,3,1,$F$1))","v":"علي"},{"$f":"INDIRECT(ADDRESS(13,COLUMN()+24,3,1,$F$1))","v":"زيد علي"},"اكسيلجي","علي","محمدي","زيد علي","عبد السميع",0,0,0,0,0,{"$f":"INDIRECT(ADDRESS(15,COLUMN()+12,3,1,$F$1))","v":"عبد السميع"},{"$f":"INDIRECT(ADDRESS(15,COLUMN()+12,3,1,$F$1))","v":"علي"},"زيد علي","عبد الله ","مصطفى","اكسيلجي","ابو اسامة",0,0,0,0,0,{"$f":"INDIRECT(ADDRESS(17,COLUMN(),3,1,$F$1))","v":"اكسيلجي"},{"$f":"INDIRECT(ADDRESS(17,COLUMN(),3,1,$F$1))","v":"عبد الله "},"علي","اكسيلجي","أحمد","عبد الله ","كامل",0,0,0,0,0,{"$f":"INDIRECT(ADDRESS(19,COLUMN()-12,3,1,$F$1))","v":"مصطفى"},{"$f":"INDIRECT(ADDRESS(19,COLUMN()-12,3,1,$F$1))","v":"عبد السميع"},"عبد الله ","ابو اسامة","كامل","محمدي","مصطفى",0,0,0,0,0]
[null,null,{"$f":"الرئيسه!D12","v":0},{"$f":"INDIRECT(ADDRESS(6,COLUMN()+72,3,1,$F$1))","v":0},0,0,0,0,0,0,0,0,0,0,0,{"$f":"INDIRECT(ADDRESS(8,COLUMN()+60,3,1,$F$1))","v":0},0,0,0,0,0,0,0,0,0,0,0,{"$f":"INDIRECT(ADDRESS(10,COLUMN()+48,3,1,$F$1))","v":0},{"$f":"INDIRECT(ADDRESS(10,COLUMN()+48,3,1,$F$1))","v":0},0,0,0,0,0,0,0,0,0,0,{"$f":"INDIRECT(ADDRESS(12,COLUMN()+36,3,1,$F$1))","v":0},{"$f":"INDIRECT(ADDRESS(12,COLUMN()+36,3,1,$F$1))","v":0},0,0,0,0,0,0,0,0,0,0,{"$f":"INDIRECT(ADDRESS(14,COLUMN()+24,3,1,$F$1))","v":0},{"$f":"INDIRECT(ADDRESS(14,COLUMN()+24,3,1,$F$1))","v":0},0,0,0,0,0,0,0,0,0,0,{"$f":"INDIRECT(ADDRESS(16,COLUMN()+12,3,1,$F$1))","v":0},{"$f":"INDIRECT(ADDRESS(16,COLUMN()+12,3,1,$F$1))","v":0},0,0,0,0,0,0,0,0,0,0,{"$f":"INDIRECT(ADDRESS(18,COLUMN(),3,1,$F$1))","v":0},{"$f":"INDIRECT(ADDRESS(18,COLUMN(),3,1,$F$1))","v":0},0,0,0,0,0,0,0,0,0,0]
[null,null,null,{"$f":"INDIRECT(ADDRESS(7,COLUMN()+72,3,1,$F$1))","v":0},0,0,0,0,0,0,0,0,0,0,0,{"$f":"INDIRECT(ADDRESS(9,COLUMN()+60,3,1,$F$1))","v":0},0,0,0,0,0,0,0,0,0,0,0,{"$f":"INDIRECT(ADDRESS(11,COLUMN()+48,3,1,$F$1))","v":0},{"$f":"INDIRECT(ADDRESS(11,COLUMN()+48,3,1,$F$1))","v":0},0,0,0,0,0,0,0,0,0,0,{"$f":"INDIRECT(ADDRESS(13,COLUMN()+36,3,1,$F$1))","v":0},{"$f":"INDIRECT(ADDRESS(13,COLUMN()+36,3,1,$F$1))","v":0},0,0,0,0,0,0,0,0,0,0,{"$f":"INDIRECT(ADDRESS(15,COLUMN()+24,3,1,$F$1))","v":0},{"$f":"INDIRECT(ADDRESS(15,COLUMN()+24,3,1,$F$1))","v":0},0,0,0,0,0,0,0,0,0,0,{"$f":"INDIRECT(ADDRESS(17,COLUMN()+12,3,1,$F$1))","v":0},{"$f":"INDIRECT(ADDRESS(17,COLUMN()+12,3,1,$F$1))","v":0},0,0,0,0,0,0,0,0,0,0,{"$f":"INDIRECT(ADDRESS(19,COLUMN(),3,1,$F$1))","v":0},{"$f":"INDIRECT(ADDRESS(19,COLUMN(),3,1,$F$1))","v":0},0,0,0,0,0,0,0,0,0,0]

{"sheet":"ورقة1","index":8,"n_rows":46,"n_cols":74,"rows_kept":46,"cut":false,"hidden":false,"merged":[[3,73,3,74],[3,55,3,56],[3,58,3,59],[3,61,3,62],[3,64,3,65],[3,67,3,68],[3,70,3,71],[19,1,24,1],[26,1,31,1],[33,1,38,1],[40,1,45,1],[3,49,3,50],[5,1,10,1],[12,1,17,1],[3,19,3,20],[3,22,3,23],[3,25,3,26],[3,28,3,29],[3,31,3,32],[3,34,3,35],[3,1,4,1],[3,4,3,5],[3,7,3,8],[3,10,3,11],[3,13,3,14],[3,16,3,17],[3,52,3,53],[3,37,3,38],[3,40,3,41],[3,43,3,44],[3,46,3,47]]}
[]
[]
[]
[null,"اليوم","الصفوف",null,{"$f":"'جدول إجمالي الفصول'!C6","v":"الأول أ"},null,null,{"$f":"'جدول إجمالي الفصول'!C8","v":"الأول ب"},null,null,{"$f":"'[1]جدول إجمالي الفصول'!C10","v":"اول ج"},null,null,"اول د",null,null,"ثاني ا",null,null,"ثاني ب",null,null,"ثاني ج",null,null,"ثاني د",null,null,"ثالث ا",null,null,"ثالث ب",null,null,"ثالث ج",null,null,"ثالث د",null,null,"رابع ا",null,null,"رابع ب",null,null,"رابع ج",null,null,"رابع د",null,null,"خامس ا",null,null,"خامس ب",null,null,"خامس ج",null,null,"خامس د",null,null,"سادس ا",null,null,"سادس ب",null,null,"سادس ج",null,null,"سادس د"]
[null,null,"الدرس",null,"المادة والمعلم",null,null,"المادة والمعلم",null,null,"المادة والمعلم",null,null,"المادة والمعلم",null,null,"المادة والمعلم",null,null,"المادة والمعلم",null,null,"المادة والمعلم",null,null,"المادة والمعلم",null,null,"المادة والمعلم",null,null,"المادة والمعلم",null,null,"المادة والمعلم",null,null,"المادة والمعلم",null,null,"المادة والمعلم",null,null,"المادة والمعلم",null,null,"المادة والمعلم",null,null,"المادة والمعلم",null,null,"المادة والمعلم",null,null,"المادة والمعلم",null,null,"المادة والمعلم",null,null,"المادة والمعلم",null,null,"المادة والمعلم",null,null,"المادة والمعلم",null,null,"المادة والمعلم",null,null,"المادة والمعلم"]
[null,"السبت",1]
[null,null,2]
[null,null,3]
[null,null,4]
[null,null,5]
[null,null,6]
[]
[null,"الاحد",1]
[null,null,2]
[null,null,3]
[null,null,4]
[null,null,5]
[null,null,6]
[]
[null,"الاثنين",1]
[null,null,2]
[null,null,3]
[null,null,4]
[null,null,5]
[null,null,6]
[]
[null,"الثلاثاء",1]
[null,null,2]
[null,null,3]
[null,null,4]
[null,null,5]
[null,null,6]
[]
[null,"الأربعاء",1]
[null,null,2]
[null,null,3]
[null,null,4]
[null,null,5]
[null,null,6]
[]
[null,"الخميس",1]
[null,null,2]
[null,null,3]
[null,null,4]
[null,null,5]
[null,null,6]